Workbook

Sheet Data Input
A1: STATE OF ARIZONA CLOSING PACKAGE N - GASB 87 LEASES - Form 72a Collection Form for FY2024 Receivable Leases (State as LESSOR)
A2: ----- Due Date 08/09/2024 -----
A3: This FILLABLE form is designed to capture your agency's GASB 87 lease information for NEW leases entered into during FY2024.
A5: Reporting background:
A6: Please complete this template for every lease that qualifies as a GASB 87 Lease AND has a start date during FY2024 (July 1, 2023 - June 30, 2024). For example: - Receivable leases where the State is the LESSOR, - Meets scope requirements and is not listed as specifically EXCLUDED, - Total payments to be received are greater than the Materiality Threshold of $500,000, and - Has a Maximum Possible Lease Term of more than 12 months. You should have completed Form 72 - "Decision Form for Lessor" first to verify qualifications (link at right): | B6: Closing Package Information - Section N - Leases
A8: STEPS:
A9: 1. Collect the Lease Contracts and other information for all NEW Leases entered into during FY2024 and document whether they qualify as GASB 87 Leases (either through the Decision Form or some other similar process). If any leases qualify as GASB 87 Leases, then this Lease Collection Form must be completed.
A10: 2. Save a copy of this Lease Collection Form and rename with your Agency's 3 letter ID (for example, "ADA Form 72a - Collection Form for Lessor - FY2024").
A11: 3. Complete the following sections by entering in the applicable information for each lease within a separate column (starting with column C). There are 10 columns provided. If you have more than 10 GASB 87 Receivable Leases, duplicate the form & label as needed (1 of 2, 2 of 2, or 1 of 3, 2 of 3, 3 of 3, etc).
A12: 4. Maintain all documentation and supporting workpapers to support your conclusion for audit purposes in a permanent file (i.e. Lease Contracts, Decision Form (or substitute), and this Lease Collection Form).
A13: 5. Return a copy of this Lease Collection Form to the ACFR e-mail address at right by the Due Date listed above (copy and paste address). | B13: ACFR@azdoa.gov
A15: Note 1 - The Blue highlighted cells are for manual or drop-down input. The Orange highlighted cells contain formulas and will automatically fill. Please do not change the orange cells.
A16: Note 2 - Do not insert new columns or rows. As noted above, if you have more than 10 leases, duplicate the form instead of inserting new columns.
A17: Note 3 - Several sections below mention the criteria, 'Reasonably Certain'. To be reasonably certain means that there is a greater than probable chance an event will take place.
A19: For details on GASB 87, see the GASB 87 Statement on the GASB website, link at right: | B19: GASB Statement 87
A21: For additional questions on any of the above steps (including filling out this form), please send questions to the ACFR e-mail address above.
A23: I. Agency Information
A24: (Only need to fill out this section once for entire worksheet)
A25: Agency three letter ID (Example: Arizona Department of Administration = ADA):
A26: Preparer Name:
A27: Preparer E-mail:
A28: Preparer Phone:
A29: Date Completed:
A30: Approved by:
A32: How many GASB 87 Receivable Leases were entered into during FY2024? If more than 10, the agency will need to fill out multiple forms (label them 1 of 2, 2 of 2, or 1 of 3, 2 of 3, 3 of 3, etc)
A34: II. General Information | B34: Example (complex) | C34: Lease # 1 | D34: Lease # 2 | E34: Lease # 3 | F34: Lease # 4 | G34: Lease # 5 | H34: Lease # 6 | I34: Lease # 7 | J34: Lease # 8 | K34: Lease # 9 | L34: Lease # 10
A35: 1. Contract # (If unknown or unassigned, please create your own.) | B35: ABC 123
A37: 2. Name of the party you are leasing to (Lessee): | B37: ABC Land Development
A39: 3. Address of the Leased Property or Description of Leased Asset
A40: If leasing out office space, land or right-of-way, enter the full address of the leased property. For equipment or something else, provide a description of the leased asset (for example: HP 4700 Copier or 2021 Ford F150 truck, VIN #ABC123). | B40: 1234 Beaver St, Suite 300, Mayberry, AZ 86123
A42: 4. Is the lease any of the following (for disclosure only):
A43: a. Sublease - initially the State agency leases an asset from a third party, but then leases the asset out to another party. Example: A state agency leases a floor in a building from a vendor and rents a room to another entity. The State acts as both Lessee and Lessor. Since the other parties involved are 2 different entities, both sides of the lease must be reported separately and should NOT be netted together. | B43: No
A44: b. Sale-leaseback - the sale of a property with an agreement that the property will then be leased back. Example: A non-state entity sells a piece of property to a state agency with the contractual agreement that the non-state entity will lease the asset back. The state agency is the Purchasor and the Lessor. | B44: No
A45: c. Lease-leaseback - the lease of a property to a tenant with the agreement that the property will then be leased back from that same party. Example: A state agency owns a piece of land and leases it to a non-state company. The agreement obligates the company to build an office and lease it back to the state agency. The State acts as both Lessee and Lessor. In this case, since the other party is the same entity, the lease proceeds and payouts will be netted for reporting purposes. | B45: No
A46: If any of the 3 questions above are answered Yes, you will be contacted by the GAAP Group for additional info.
A48: 5. Is the entire lease payment received recorded 100% into a single Chart of Accounts string (COA) or Divided between Funds or Agencies? | B48: Divided - Fill out Gen Extra Info Tab
A49: If the receipt of payment is divided, then please switch to the "Gen Extra Info" Tab to fill out the deposit split info (click on hyperlink to the right for correct corresponding Lease # column). | B49: Example - Gen Extra Info | C49: Lease # 1 - Gen Extra Info | D49: Lease # 2 - Gen Extra Info | E49: Lease # 3 - Gen Extra Info | F49: Lease # 4 - Gen Extra Info | G49: Lease # 5 - Gen Extra Info | H49: Lease # 6 - Gen Extra Info | I49: Lease # 7 - Gen Extra Info | J49: Lease # 8 - Gen Extra Info | K49: Lease # 9 - Gen Extra Info | L49: Lease # 10 - Gen Extra Info
A50: If the receipt of payment is recorded into a single COA, please provide the following COA Elements below. REQUIRED elements are starred (*). Use any other COA indicated below that will help identify the receipt of payments for each lease.
A51: Agency * | B51: see Gen Extra Info Tab
A52: Fund *
A53: Revenue Source *
A54: Appropriation
A55: Unit
A56: Task
A57: Sub Task
A58: Program
A59: Phase
A60: Program Period
A62: III. Asset Information
A63: 6. Asset type that is being leased out
A64: Using the drop down list, select the Asset Type that is being leased. If the leased asset type is not listed, please choose a description that is closest to your leased asset (or contact the GAAP Group for further assistance). | B64: Leased Constructed Buildings (Office Space)
A66: 7. Return of the Asset
A67: Does the contract require the lessee to return the asset in its original or enhanced condition? | B67: No
A68: If above question is answered Yes, then GASB 87 requires that the asset accumulate NO DEPRECIATION during the lease period as it is expected to be returned in the original or enhanced condition. If, however, there is a residual value guarantee set at a value lower than its original value at commencement of the lease, depreciation should still be calculated. If the asset is Land, then there should not be any depreciation regardless.
A70: 8. What is the asset number listed on the AFIS Fixed Asset Module (if not in AFIS, please explain)? | B70: AD1000
A72: IV. Deferred Inflow of Resources
A73: 9. Measurement of Deferred Inflow of Resources
A74: Per GASB 87, Deferred Inflow of Resources = + Initial Lease Receivable (calculated in PV Calc tab) + Lease payments received from the lessee at or before start of lease that relate to future periods (see (a) below) - Lease incentives paid to the lessee at or before start of lease (see (b) below)
A75: a. Enter the amount the Lessee paid to the State (Lessor) at or before the start of the lease that relates to future periods. - For example, the final month's rent - Do NOT include downpayments (above first required payment) as those are not related to a future period | B75: 302000
A76: b. Enter the amount the State (Lessor) provided as incentives at or before the start of the lease. - For example, paying a preexisting lease obligation to a third party in order to gain the lease, or - Reimbursements of lessee's costs (installation costs, moving costs, etc) | B76: 15000
A78: 10. If any amounts are entered in 9(a) or (b), please describe (indicate which question you are answering if more than one) | B78: (a) Last month's rent, (b) Reimbursed moving costs to Lessee
A80: 11. If any amounts are entered in 9(a) or (b), provide the COA Elements below where the payment from the lessee (or incentive paid by the State (Lessor)) was posted. REQUIRED elements are starred (*):
A81: NOTE - if more than one, indicate with the corresponding letter (i.e. Fund: (a) 1000, (b) AD1200)
A82: Agency * | B82: (a & b) ADA
A83: Fund * | B83: (a & b) 1000
A84: Object or Revenue Source (please indicate which one) * | B84: (a) R - 4632, (b) O - 7599
A85: Appropriation
A86: Unit
A87: Task
A88: Sub Task
A89: Program
A90: Phase
A91: Program Period
A92: Dept Object
A94: V. Lease Term
A95: 12. Lease commencement date
A96: Lease Start Date - because this form is specifically for New leases entered into during FY2024, the dates should be between July 1, 2023 and June 30, 2024. | B96: 2023-10-01
A98: 13. Contracted lease term
A99: Lease End Date - Enter the date the contracted lease term ends. | B99: 2033-09-30
A100: Lease Term in months (will automatically fill) - HIDE THIS LINE IN FINAL VERSION | B100: =ROUND(DATEDIF((B96),B99,"M"),0)+1 -> 120 | C100: =ROUND(DATEDIF((C96),C99,"M"),0)+1 -> 1 | D100: =ROUND(DATEDIF((D96),D99,"M"),0)+1 -> 1 | E100: 1 | F100: 1 | G100: 1 | H100: 1 | I100: 1 | J100: 1 | K100: 1 | L100: 1
A102: 14. Options to extend term
A103: If lease extensions are available in the contract, AND the agency is reasonably certain to exercise it, enter # of months available to extend the lease. | B103: 60
A105: 15. Lease End Date including Extensions (will automatically fill). | B105: =EDATE(B96,B107)-1 -> 2038-09-30 | C105: 1900-01-30 | D105: =EDATE(D96,D107)-1 -> 1900-01-30 | E105: 1900-01-30 | F105: 1900-01-30 | G105: 1900-01-30 | H105: 1900-01-30 | I105: 1900-01-30 | J105: 1900-01-30 | K105: 1900-01-30 | L105: 1900-01-30
A107: 16. Total Lease Term including Extensions in Months (will automatically fill). | B107: =B100+B103 -> 180 | C107: 1 | D107: =D100+D103 -> 1 | E107: 1 | F107: 1 | G107: 1 | H107: 1 | I107: 1 | J107: 1 | K107: 1 | L107: 1
A109: 17. Frequency of lease payments
A110: Enter how often lease payments are made (Monthly, Quarterly, Semi-Annually, Annually). If payments are Less Often than Annually, choose Annually from the dropdown list here (frequency must be at least Annually for Present Value Calculation to work). There is a space in the PV Calc tab to describe the payment frequency if Less Often than Annually (#1f). | B110: Semi-annually
A111: # of pmts/yr - HIDE THIS LINE IN FINAL VERSION | B111: =IF(B110="Weekly",52,IF(B110="Monthly",12,IF(B110="Quarterly",4,IF(B110="Semi-Annually",2,1)))) -> 2 | C111: =IF(C110="Weekly",52,IF(C110="Monthly",12,IF(C110="Quarterly",4,IF(C110="Semi-Annually",2,1)))) -> 1 | D111: 1 | E111: =IF(E110="Weekly",52,IF(E110="Monthly",12,IF(E110="Quarterly",4,IF(E110="Semi-Annually",2,1)))) -> 1 | F111: 1 | G111: 1 | H111: 1 | I111: 1 | J111: 1 | K111: 1 | L111: 1
A113: 18. Number of Payments - How many payments from lease start date (#12) to lease end date including extensions (#15)?
A114: - If payments are monthly, this answer will most likely be the same as the calculated number of months. Please calculate carefully if payments are not monthly. - If payments are Less Often than Annually, list the # of years of the lease term rather than the total # of payments (e.g. payment frequency every 5 years with a 20 year term would have a total of 4 payments, but enter 20 here instead of 4). Again, this is necessary for the Present Value Calculation to work. If this is the case, read PV Calc instructions (#1g) carefully. | B114: 30
A116: 19. Was the first lease payment received at the beginning or at the end of the first payment period (a period is the length of time between payments - see #17 frequency of payments)?
A117: - For example, lease began on 4/01 with monthly payments and first payment was due 4/30, then it would be the end of the first payment period. - For a quarterly period, payment within first 45 days would be beginning of the period. | B117: Begin
A118: Coding for Formulas - Begin = 1, End = 0 - HIDE THIS LINE IN FINAL VERSION | B118: =IF(B117="Begin",1,0) -> 1 | C118: =IF(C117="Begin",1,0) -> 0 | D118: 0 | E118: =IF(E117="Begin",1,0) -> 0 | F118: 0 | G118: 0 | H118: 0 | I118: 0 | J118: 0 | K118: 0 | L118: 0
A120: 20. When is the first payment due (most likely would be within FY2024)? | B120: 2023-10-15
A122: VI. Lease Receivable
A123: Lease payment to be received - PLEASE SEPARATE PAYMENTS TO BE RECEIVED BETWEEN #21, #22 & #23 as much as possible:
A124: 21. Fixed Lease payment - Enter FIRST Fixed Lease Payment Amount here
A125: To calculate the Fixed Lease Payment: (a) Enter the amount of the fixed lease portion of the payment. If the payment includes utilities, taxes, service costs, etc, and it is not reasonable to separate these portions from the total payment, then enter the total lease payment. If the above listed items are separated in the contract, they should not be included in the lease payment here but detailed below. (b) In addition, also include "Fixed In-Substance Fees" with the lease payment (see definition below under variable payments). (c) For payments that depend on an index or a rate (such as the Consumer Price Index or a market interest rate), the payment should be initially measured using the index or rate as of the start of the lease. | B125: 282000
A126: Because payments may not remain the same throughout the lease term, fill out the Payment Schedule on the PV Calc tab. A space is provided (#1f) to describe how often payments increase, formulas, appraisal requirements, etc.
A128: 22. Variable Usage Fees over and above Fixed In-Substance Fees:
A129: "Fixed in-Substance Fees" are the Mimimum Usage Costs of a variable usage fee and should be included in the fixed lease payment portion above. For Example, if a copier has a $.01/copy variable monthly fee, but minimum is $500, then $500 is the "Fixed In-Substance Fee" and should be added to fixed lease portion above, and the variable answer here would be "$.01/copy over 50,000 copies due to $500 minimum" ($500 is equal to $.01/copy * 50,000). Per GASB 87, also include how the fee is determined. (Do NOT include Variable Fees on PV Calc tab, but DO include Fixed In-Substance Fees) | B129: % of gross revenues req'd with each payment, minimum included in Fixed Pmt above
A131: 23. Utilities, Taxes, Service costs (janitorial or maintenance agreements), or Other additional charges (do NOT include as part of Fixed Lease Payments on PV Calc tab)
A132: a. Enter the amount for any additional charges identified, if paid to the lessor and is separately identified in the lease agreement. | B132: =282000*0.025 -> 7050
A134: b. Please briefly describe the additional charges. | B134: 2.5% occupancy tax
A136: 24. Residual Value Guarantee:
A137: a. Does the lease contain a residual value guarantee?
A138: For example, does the lease specify the asset must be returned in a certain condition to avoid a penalty, or must have a certain minimum fair value upon return to the lessor? | B138: No
A140: b. If so, is the residual value guarantee payment fixed in substance? (i.e. not contingent on a future event).
A141: For example, a residual value guarantee could have both a minimum amount to be paid upon termination of the lease plus a contingent fee based on the future value of the asset upon termination of the lease. If the residual value guarantee has no minimum, but is fully contingent on the future value, then it is not fixed in substance and should NOT be included in the Lease Receivable calculation. This is different than on a payable lease where the inclusion in the liability is based on a reasonably certain occurence, not a fixed in substance occurrence. | B141: N/A
A142: If Yes, then please enter the amount of the Fixed in Substance Residual Value Guarantee on the PV Calc Tab.
A144: 25. Lease incentives (during lease term):
A145: a. Does the lease agreement contain lease incentives that will occur AFTER the start of the lease term? - For example, Abated or Free Rent periods, - Reductions in rent, - Bonus amounts paid from the lessor to the lessee, etc? | B145: Yes
A147: b. If Yes, please describe: | B147: Free Rent Period for pmt due 10/15/2025
A148: Please read instructions on PV Calc tab carefully on how to include lease incentives in the Payment Schedule (#1d & 1e).
A150: 26. Estimated Uncollectible Amounts
A151: Based on current economic factors, lessee's credit rating, historical information from this or other lessees, does the agency feel that there may be uncollectible amounts related to this lease agreement? | B151: Yes - Fill out PV Calc Tab
A152: If Yes, then please enter the Allowance for Uncollectible Leases on the PV Calc Tab.
A154: VII. Interest Rate
A155: 27. Enter the interest rate for lease (with four digits past the decimal) using one of the three methods listed below:
A156: a. If the interest rate is specifically identified in the contract (explicit rate), use this rate.
A157: b. If the explicit rate is unknown, there may be an implicit rate (please see Implicit Rate info tab for additional information and a place to enter the information to calculate it).
A158: c. If both the explicit interest rate and implicit rate are unknown, identify the interest rate in the table below using the lease term (total lease term in months is copied here from #16 above for ease of reference). | B158: =B107 -> 180 | C158: 1 | D158: =D107 -> 1 | E158: 1 | F158: 1 | G158: 1 | H158: 1 | I158: 1 | J158: 1 | K158: 1 | L158: 1
A159: For example: If initial contract term was 5 years (60 months) plus a 4-year (48 month) extension, for a total of 9 years (108 months) use the Long-Term rate below. | B159: 0.033234
A165: The interest rates have been updated for
A166: FY2024 & will be reassessed each year.
A167: Short-Term in months = 0 - 48 months
A168: Mid-Term in months = 49 - 96 months
A169: Long-Term in months = 97 months or longer
A171: 28. Periodic Interest Rate - based on frequency of payments (will automatically fill) | B171: =ROUND(B159/B111,6) -> 0.016617 | C171: 0 | D171: =ROUND(D159/D111,6) -> 0 | E171: 0 | F171: 0 | G171: 0 | H171: 0 | I171: 0 | J171: 0 | K171: 0 | L171: 0
A173: VIII. Calculate the Lease Liability
A174: 29. Fill out the Lease Payment Schedule on the "PV Calc" tab corresponding to the correct Lease #.
A175: The Present Value of the Lease Receivable, Amortization Table and Deferred Inflow of Resources will be calculated in each respective PV Calc tab. These are calculated with macros, and are not required to be completed by the agencies. - At a minimum, the Lease Payment Schedule must be completed. | B175: Example (complex) | C175: Lease 1 - PV Calc | D175: Lease 2 - PV Calc | E175: Lease 3 - PV Calc | F175: Lease 4 - PV Calc | G175: Lease 5 - PV Calc | H175: Lease 6 - PV Calc | I175: Lease 7 - PV Calc | J175: Lease 8 - PV Calc | K175: Lease 9 - PV Calc | L175: Lease 10 - PV Calc

Sheet Gen Extra Info
A1: GASB 87 Lease Collection Form - General Extra Info - for Leases receiving payments into multiple COAs
A3: If the lease payments received are recorded within more than one Chart of Accounts (COA) string, please complete the information below.
A5: Note 1 - The blue highlighted cells are for manual or drop-down input. The orange highlighted cells contain formulas and will automatically fill. Please do not change the orange cells.
A6: Note 2 - When payments are split between multiple COAs, please ONLY provide split information for the Fixed amount to be received. Please exclude any variable payments or payments for services, maintenance, taxes, etc that are identified separately within the lease contract.
A8: Use the SAME COLUMN here as was used in the "Data Input" tab. | B8: Example | C8: Lease # 1 | D8: Lease # 2 | E8: Lease # 3 | F8: Lease # 4 | G8: Lease # 5 | H8: Lease # 6 | I8: Lease # 7 | J8: Lease # 8 | K8: Lease # 9 | L8: Lease # 10
A9: Contract # from Data Input tab (will fill automatically) | B9: ='Data Input'!B35 -> ABC 123 | C9: ='Data Input'!C35 -> 0 | D9: ='Data Input'!D35 -> 0 | E9: ='Data Input'!E35 -> 0 | F9: ='Data Input'!F35 -> 0 | G9: ='Data Input'!G35 -> 0 | H9: ='Data Input'!H35 -> 0 | I9: ='Data Input'!I35 -> 0 | J9: ='Data Input'!J35 -> 0 | K9: ='Data Input'!K35 -> 0 | L9: ='Data Input'!L35 -> 0
A11: Is the payment received divided by a Percentage (%), or a Specific Dollar ($) Amount (i.e. 50% posted to one COA string, and 50% posted to another; or first $1,000 posted to one COA string and the rest posted to another)? | B11: Percentage (%) Split
A12: Based on your answer, please fill out the proper section below (Percentage Split or Dollar Amount Split)
A14: Percentage (%) Split:
A15: How many different sets of COAs are there? | B15: 2
A17: 1 - Percentage of payment received for First COA | B17: 0.7
A18: Please provide COA below. REQUIRED elements are starred (*). Use any other COA indicated below that will help identify the payments received for each lease.
A19: 1a - Agency * | B19: ADA
A20: 1b - Fund * | B20: AD1234
A21: 1c - Revenue Source * | B21: 4632
A22: 1d - Appropriation
A23: 1e - Unit
A24: 1f - Task
A25: 1g - Sub Task
A26: 1h - Program
A27: 1i - Phase
A28: 1j - Program Period
A30: 2 - Percentage of payment received for Second COA | B30: 0.3
A31: Please provide COA below. REQUIRED elements are starred (*). Use any other COA indicated below that will help identify the payments received for each lease.
A32: 2a - Agency * | B32: DCA
A33: 2b - Fund * | B33: DC4567
A34: 2c - Revenue Source * | B34: 4632
A35: 2d - Appropriation
A36: 2e - Unit
A37: 2f - Task
A38: 2g - Sub Task
A39: 2h - Program
A40: 2i - Phase
A41: 2j - Program Period
A43: 3 - Percentage of payment received for Third COA
A44: Please provide COA below. REQUIRED elements are starred (*). Use any other COA indicated below that will help identify the payments received for each lease.
A45: 3a - Agency *
A46: 3b - Fund *
A47: 3c - Revenue Source *
A48: 3d - Appropriation
A49: 3e - Unit
A50: 3f - Task
A51: 3g - Sub Task
A52: 3h - Program
A53: 3i - Phase
A54: 3j - Program Period
A56: 4 - Percentage of payment received for Fourth COA
A57: Please provide COA below. REQUIRED elements are starred (*). Use any other COA indicated below that will help identify the payments received for each lease.
A58: 4a - Agency *
A59: 4b - Fund *
A60: 4c - Revenue Source *
A61: 4d - Appropriation
A62: 4e - Unit
A63: 4f - Task
A64: 4g - Sub Task
A65: 4h - Program
A66: 4i - Phase
A67: 4j - Program Period
A68: 4k - Dept Object
A70: Specific Dollar ($) Amount Split:
A71: How many different sets of COAs are there?
A73: 1 - Amount of payment received for First COA
A74: Please provide COA below. REQUIRED elements are starred (*). Use any other COA indicated below that will help identify the payments received for each lease.
A75: 1a - Agency *
A76: 1b - Fund *
A77: 1c - Revenue Source *
A78: 1d - Appropriation
A79: 1e - Unit
A80: 1f - Task
A81: 1g - Sub Task
A82: 1h - Program
A83: 1i - Phase
A84: 1j - Program Period
A86: 2 - Amount of payment received for Second COA
A87: Please provide COA below. REQUIRED elements are starred (*). Use any other COA indicated below that will help identify the payments received for each lease.
A88: 2a - Agency *
A89: 2b - Fund *
A90: 2c - Revenue Source *
A91: 2d - Appropriation
A92: 2e - Unit
A93: 2f - Task
A94: 2g - Sub Task
A95: 2h - Program
A96: 2i - Phase
A97: 2j - Program Period
A99: 3 - Amount of payment received for Third COA
A100: Please provide COA below. REQUIRED elements are starred (*). Use any other COA indicated below that will help identify the payments received for each lease.
A101: 3a - Agency *
A102: 3b - Fund *
A103: 3c - Revenue Source *
A104: 3d - Appropriation
A105: 3e - Unit
A106: 3f - Task
A107: 3g - Sub Task
A108: 3h - Program
A109: 3i - Phase
A110: 3j - Program Period
A112: 4 - Amount of payment received for Fourth COA
A113: Please provide COA below. REQUIRED elements are starred (*). Use any other COA indicated below that will help identify the payments received for each lease.
A114: 4a - Agency *
A115: 4b - Fund *
A116: 4c - Revenue Source *
A117: 4d - Appropriation
A118: 4e - Unit
A119: 4f - Task
A120: 4g - Sub Task
A121: 4h - Program
A122: 4i - Phase
A123: 4j - Program Period
A124: 4k - Dept Object

Sheet Implicit Rate info
A1: GASB 87 Lease Collection Form - Calculating an Implicit Rate on a Lease
A3: If an interest rate is not explicitely stated within the lease contract, there may be an implicit rate, which can be calculated if the information requested below is available.
A5: In addition to the information provided within the Data Input tab (see orange auto-filled cells below), check the lease contract for availability of the 3 additional data items requested below to determine the Implicit Rate.
A7: All 3 items requested below are needed to calculate the Implicit Rate. If this information is unavailable, then use the Discount Rates provided on the Data Input tab (yellow highlighted table).
A9: If ALL of the information requested below is available for a lease, please enter the information within the correct Lease # column below.
A11: Note - The blue highlighted cells are for manual input. The orange highlighted cells contain formulas and will automatically fill. Please do not change the orange cells.
A13: Use the SAME COLUMN here as was used in the "Data Input" tab. | B13: Example | C13: Lease # 1 | D13: Lease # 2 | E13: Lease # 3 | F13: Lease # 4 | G13: Lease # 5 | H13: Lease # 6 | I13: Lease # 7 | J13: Lease # 8 | K13: Lease # 9 | L13: Lease # 10
A14: Contract # from Data Input tab (will fill automatically) | B14: ='Data Input'!B35 -> ABC 123 | C14: ='Data Input'!C35 -> 0 | D14: ='Data Input'!D35 -> 0 | E14: ='Data Input'!E35 -> 0 | F14: ='Data Input'!F35 -> 0 | G14: ='Data Input'!G35 -> 0 | H14: ='Data Input'!H35 -> 0 | I14: ='Data Input'!I35 -> 0 | J14: ='Data Input'!J35 -> 0 | K14: ='Data Input'!K35 -> 0 | L14: ='Data Input'!L35 -> 0
A15: Cash Flows at Beginning or End (Section V, #19 of Data Input tab) | B15: ='Data Input'!B117 -> Begin | C15: ='Data Input'!C117 -> 0 | D15: ='Data Input'!D117 -> 0 | E15: ='Data Input'!E117 -> 0 | F15: ='Data Input'!F117 -> 0 | G15: ='Data Input'!G117 -> 0 | H15: ='Data Input'!H117 -> 0 | I15: ='Data Input'!I117 -> 0 | J15: ='Data Input'!J117 -> 0 | K15: ='Data Input'!K117 -> 0 | L15: ='Data Input'!L117 -> 0
A16: Number of payments (Section V, #18) | B16: ='Data Input'!B114 -> 30 | C16: ='Data Input'!C114 -> 0 | D16: ='Data Input'!D114 -> 0 | E16: ='Data Input'!E114 -> 0 | F16: ='Data Input'!F114 -> 0 | G16: ='Data Input'!G114 -> 0 | H16: ='Data Input'!H114 -> 0 | I16: ='Data Input'!I114 -> 0 | J16: ='Data Input'!J114 -> 0 | K16: ='Data Input'!K114 -> 0 | L16: ='Data Input'!L114 -> 0
A17: Frequency of payments (Section V, #17) | B17: ='Data Input'!B110 -> Semi-annually | C17: ='Data Input'!C110 -> 0 | D17: ='Data Input'!D110 -> 0 | E17: ='Data Input'!E110 -> 0 | F17: ='Data Input'!F110 -> 0 | G17: ='Data Input'!G110 -> 0 | H17: ='Data Input'!H110 -> 0 | I17: ='Data Input'!I110 -> 0 | J17: ='Data Input'!J110 -> 0 | K17: ='Data Input'!K110 -> 0 | L17: ='Data Input'!L110 -> 0
A18: Date of first payment (Section V, #20) | B18: ='Data Input'!B120 -> 2023-10-15 | C18: ='Data Input'!C120 -> 00:00:00 | D18: ='Data Input'!D120 -> 00:00:00 | E18: ='Data Input'!E120 -> 00:00:00 | F18: ='Data Input'!F120 -> 00:00:00 | G18: ='Data Input'!G120 -> 00:00:00 | H18: ='Data Input'!H120 -> 00:00:00 | I18: ='Data Input'!I120 -> 00:00:00 | J18: ='Data Input'!J120 -> 00:00:00 | K18: ='Data Input'!K120 -> 00:00:00 | L18: ='Data Input'!L120 -> 00:00:00
A19: Lease Start Date (Section V, #12) | B19: ='Data Input'!B96 -> 2023-10-01 | C19: ='Data Input'!C96 -> 00:00:00 | D19: ='Data Input'!D96 -> 00:00:00 | E19: ='Data Input'!E96 -> 00:00:00 | F19: ='Data Input'!F96 -> 00:00:00 | G19: ='Data Input'!G96 -> 00:00:00 | H19: ='Data Input'!H96 -> 00:00:00 | I19: ='Data Input'!I96 -> 00:00:00 | J19: ='Data Input'!J96 -> 00:00:00 | K19: ='Data Input'!K96 -> 00:00:00 | L19: ='Data Input'!L96 -> 00:00:00
A20: Lease End Date including Extensions (Section V, #15) | B20: ='Data Input'!B105 -> 2038-09-30 | C20: ='Data Input'!C105 -> 1900-01-30 | D20: ='Data Input'!D105 -> 1900-01-30 | E20: ='Data Input'!E105 -> 1900-01-30 | F20: ='Data Input'!F105 -> 1900-01-30 | G20: ='Data Input'!G105 -> 1900-01-30 | H20: ='Data Input'!H105 -> 1900-01-30 | I20: ='Data Input'!I105 -> 1900-01-30 | J20: ='Data Input'!J105 -> 1900-01-30 | K20: ='Data Input'!K105 -> 1900-01-30 | L20: ='Data Input'!L105 -> 1900-01-30
A22: 1. Fair value of the asset at commencement
A24: 2. Lessor's expected fair value of the asset at the end of the lease term
A26: 3. Any initial direct costs that the lessor incurs
A28: IF THE IMPLICIT RATE INFO IS FILLED OUT ABOVE, please enter "See Implicit Rate Info tab" within the interest rate cell (Sec VII, #27) on the Data Input tab.
A29: With the information provided above, the GAO office will calculate the Implicit Rate and the Present Value of the Lease.

Sheet How to Enable Macros
A1: YOUR EXCEL TRUST CENTER SETTINGS MUST BE MACRO-ENABLED TO RUN THE MACROS IN THIS FILE.
A2: (This file was created in Excel Version 2016)
A3: To enable settings:
A4: Go to File > Options > Trust Center > Trust Center Settings…
A5: Enable all macros and trust access to the VBA project object model as shown below.

Sheet Example - PV Calc
A1: Present Value Calculations tab - Example (column B) | B1: Contract # | C1: ='Data Input'!B35 -> ABC 123 | E1: Present Value Table | J1: Amortization Table
A2: Periodic Interest Rate (Section VII, #27-28 from Data Input tab) | B2: ='Data Input'!B171 -> 0.016617 | E2: Period | F2: Payment Amount | G2: Present Value | J2: Period | K2: Date | L2: Beginning Balance | M2: Payment | N2: Principal | O2: Interest | P2: Ending Balance
A3: Cash Flows at Beginning or End (Section V, #19) | B3: ='Data Input'!B117 -> Begin | C3: Important: | E3: 1 | F3: 282000 | G3: =F3 / (((1+$B$2)) ^ (E3-1)) -> 282000 | J3: 1 | K3: =B6 -> 2023-10-15 | L3: =B25 -> 6757100.081 | M3: 282000 | N3: =M3-O3 -> 282000 | O3: 0 | P3: =L3-N3 -> 6475100.081
A4: Number of payments (Section V, #18) | B4: ='Data Input'!B114 -> 30 | C4: Do not insert/delete/move | E4: 2 | F4: 282000 | G4: 277390.6004 | J4: 2 | K4: =EDATE($B$6,6) -> 2024-04-15 | L4: =P3 -> 6475100.081 | M4: 282000 | N4: 174403.26 | O4: =ROUND(L4*$B$2,2) -> 107596.74 | P4: 6300696.821
A5: Frequency of payments (Section V, #17) | B5: ='Data Input'!B110 -> Semi-annually | C5: cells B2:B8 | E5: 3 | F5: 282000 | G5: 272856.5432 | J5: 3 | K5: =EDATE($B$6,12) -> 2024-10-15 | L5: 6300696.821 | M5: 282000 | N5: 177301.32 | O5: 104698.68 | P5: 6123395.501
A6: Date of first payment (Section V, #20) | B6: ='Data Input'!B120 -> 2023-10-15 | C6: (macros depend on them) | E6: 4 | F6: 282000 | G6: 268396.597 | J6: 4 | K6: =EDATE($B$6,18) -> 2025-04-15 | L6: 6123395.501 | M6: 282000 | N6: 180247.54 | O6: 101752.46 | P6: 5943147.961
A7: Lease Start Date (Section V, #12) | B7: ='Data Input'!B96 -> 2023-10-01 | E7: 5 | F7: 0 | G7: 0 | J7: 5 | K7: =EDATE($B$6,24) -> 2025-10-15 | L7: 5943147.961 | M7: 0 | N7: -98757.29 | O7: 98757.29 | P7: 6041905.251
A8: Lease End Date including Extensions (Section V, #15) | B8: ='Data Input'!B105 -> 2038-09-30 | E8: 6 | F8: 282000 | G8: 259694.2116 | J8: 6 | K8: =EDATE($B$6,30) -> 2026-04-15 | L8: 6041905.251 | M8: 282000 | N8: 181601.66 | O8: 100398.34 | P8: 5860303.591
E9: 7 | F9: 282000 | G9: 255449.4087 | J9: 7 | K9: =EDATE($B$6,36) -> 2026-10-15 | L9: 5860303.591 | M9: 282000 | N9: 184619.34 | O9: 97380.66 | P9: 5675684.251
A10: Fixed Lease Payment Receivable Schedule (Section VI, #21 & see instructions below): | B10: Amount | C10: # of Payments | E10: 8 | F10: 282000 | G10: 251273.9889 | J10: 8 | K10: =EDATE($B$6,42) -> 2027-04-15 | L10: 5675684.251 | M10: 282000 | N10: 187687.15 | O10: 94312.85 | P10: 5487997.101
A11: Payment Amount #1 & # of Payments at this amount | B11: 282000 | C11: 4 | E11: 9 | F11: 282000 | G11: 247166.8178 | J11: 9 | K11: =EDATE($B$6,48) -> 2027-10-15 | L11: 5487997.101 | M11: 282000 | N11: 190805.95 | O11: 91194.05 | P11: 5297191.151
A12: Payment Amount #2 & # of Payments at this amount | B12: 0 | C12: 1 | E12: 10 | F12: 282000 | G12: 243126.7801 | J12: 10 | K12: =EDATE($B$6,54) -> 2028-04-15 | L12: 5297191.151 | M12: 282000 | N12: 193976.57 | O12: 88023.43 | P12: 5103214.581
A13: Payment Amount #3 & # of Payments at this amount | B13: 282000 | C13: 5 | E13: 11 | F13: 302000 | G13: 256113.9684 | J13: 11 | K13: =EDATE($B$6,60) -> 2028-10-15 | L13: 5103214.581 | M13: 302000 | N13: 217199.88 | O13: 84800.12 | P13: 4886014.701
A14: Payment Amount #4 & # of Payments at this amount | B14: 302000 | C14: 20 | E14: 12 | F14: 302000 | G14: 251927.686 | J14: 12 | K14: =EDATE($B$6,66) -> 2029-04-15 | L14: 4886014.701 | M14: 302000 | N14: 220809.09 | O14: 81190.91 | P14: 4665205.611
A15: Totals from add'l table below if needed) | B15: =B88 -> 0 | C15: =C88 -> 0 | E15: 13 | F15: 302000 | G15: 247809.8301 | J15: 13 | K15: =EDATE($B$6,72) -> 2029-10-15 | L15: 4665205.611 | M15: 302000 | N15: 224478.28 | O15: 77521.72 | P15: 4440727.331
A16: Total Lease Payments (sum of all payment amounts * # of payments) | B16: =(B11*C11)+(B12*C12)+(B13*C13)+(B14*C14)+(B15) -> 8578000 | C16: =SUM(C11:C15) -> 30 | E16: 14 | F16: 302000 | G16: 243759.2821 | J16: 14 | K16: =EDATE($B$6,78) -> 2030-04-15 | L16: 4440727.331 | M16: 302000 | N16: 228208.43 | O16: 73791.57 | P16: 4212518.901
D17: Response per | E17: 15 | F17: 302000 | G17: 239774.9419 | J17: 15 | K17: =EDATE($B$6,84) -> 2030-10-15 | L17: 4212518.901 | M17: 302000 | N17: 232000.57 | O17: 69999.43 | P17: 3980518.331
A18: Other Payment Considerations: | B18: Residual Value Guar | C18: Allow for Uncollectible Amt | D18: Data Input tab | E18: 16 | F18: 302000 | G18: 235855.7273 | J18: 16 | K18: =EDATE($B$6,90) -> 2031-04-15 | L18: 3980518.331 | M18: 302000 | N18: 235855.73 | O18: 66144.27 | P18: 3744662.601
A19: Residual Value Guarantee if Fixed-in-Substance (Section VI, #24) | B19: 0 | D19: ='Data Input'!B141 -> N/A | E19: 17 | F19: 302000 | G19: 232000.5737 | J19: 17 | K19: =EDATE($B$6,96) -> 2031-10-15 | L19: 3744662.601 | M19: 302000 | N19: 239774.94 | O19: 62225.06 | P19: 3504887.661
A20: Allowance for Uncollectible Leases (Section VI, #26) | E20: 18 | F20: 302000 | G20: 228208.4342 | J20: 18 | K20: =EDATE($B$6,102) -> 2032-04-15 | L20: 3504887.661 | M20: 302000 | N20: 243759.28 | O20: 58240.72 | P20: 3261128.381
A21: For example, could be calculated as a percentage of the total lease pmt rcvbl above | C21: =B16*0.002 -> 17156 | D21: ='Data Input'!B151 -> Yes - Fill out PV Calc Tab | E21: 19 | F21: 302000 | G21: 224478.2786 | J21: 19 | K21: =EDATE($B$6,108) -> 2032-10-15 | L21: 3261128.381 | M21: 302000 | N21: 247809.83 | O21: 54190.17 | P21: 3013318.551
A22: Total Other Payment Considerations | B22: =SUM(B19:B21) -> 0 | E22: 20 | F22: 302000 | G22: 220809.0939 | J22: 20 | K22: =EDATE($B$6,114) -> 2033-04-15 | L22: 3013318.551 | M22: 302000 | N22: 251927.69 | O22: 50072.31 | P22: 2761390.861
A23: Total Undiscounted Cash Flows (Total Payments + Other Considerations) | B23: =B16+B22 -> 8578000 | E23: 21 | F23: 302000 | G23: 217199.8834 | J23: 21 | K23: =EDATE($B$6,120) -> 2033-10-15 | L23: 2761390.861 | M23: 302000 | N23: 256113.97 | O23: 45886.03 | P23: 2505276.891
C24: Important: | E24: 22 | F24: 302000 | G24: 213649.6669 | J24: 22 | K24: =EDATE($B$6,126) -> 2034-04-15 | L24: 2505276.891 | M24: 302000 | N24: 260369.81 | O24: 41630.19 | P24: 2244907.081
A25: Net Present Value (calculated after Macros below run) | B25: =SUM(G:G) -> 6757100.081 | C25: Do not insert/delete/move | E25: 23 | F25: 302000 | G25: 210157.4801 | J25: 23 | K25: =EDATE($B$6,132) -> 2034-10-15 | L25: 2244907.081 | M25: 302000 | N25: 264696.38 | O25: 37303.62 | P25: 1980210.701
C26: NPV must be cell B25 | E26: 24 | F26: 302000 | G26: 206722.3744 | J26: 24 | K26: =EDATE($B$6,138) -> 2035-04-15 | L26: 1980210.701 | M26: 302000 | N26: 269094.84 | O26: 32905.16 | P26: 1711115.861
A27: Additions/Subtractions for Deferred Inflow of Resources (Section IV, #9-11) | B27: ='Data Input'!B75-'Data Input'!B76 -> 287000 | C27: (macros depend on it) | E27: 25 | F27: 302000 | G27: 203343.4168 | J27: 25 | K27: =EDATE($B$6,144) -> 2035-10-15 | L27: 1711115.861 | M27: 302000 | N27: 273566.39 | O27: 28433.61 | P27: 1437549.471
A28: Deferred Inflow of Resources (calculated after Macros below run) | B28: =B25+B27 -> 7044100.081 | E28: 26 | F28: 302000 | G28: 200019.6896 | J28: 26 | K28: =EDATE($B$6,150) -> 2036-04-15 | L28: 1437549.471 | M28: 302000 | N28: 278112.24 | O28: 23887.76 | P28: 1159437.231
E29: 27 | F29: 302000 | G29: 196750.2901 | J29: 27 | K29: =EDATE($B$6,156) -> 2036-10-15 | L29: 1159437.231 | M29: 302000 | N29: 282733.63 | O29: 19266.37 | P29: 876703.6008
A30: The Agency is not required to calculate the Present Value and/or enable Macros, | E30: 28 | F30: 302000 | G30: 193534.3301 | J30: 28 | K30: =EDATE($B$6,162) -> 2037-04-15 | L30: 876703.6008 | M30: 302000 | N30: 287431.82 | O30: 14568.18 | P30: 589271.7808
A31: but Steps 1 & 2 of the instructions below are REQUIRED to be completed. | E31: 29 | F31: 302000 | G31: 190370.9363 | J31: 29 | K31: =EDATE($B$6,168) -> 2037-10-15 | L31: 589271.7808 | M31: 302000 | N31: 292208.07 | O31: 9791.93 | P31: 297063.7108
A32: After completing Steps 1 & 2, if desired to calculate the Present Value, complete Steps 3 - 8: | E32: 30 | F32: 302000 | G32: 187259.2493 | J32: 30 | K32: =EDATE($B$6,174) -> 2038-04-15 | L32: 297063.7108 | M32: 302000 | N32: 297063.71 | O32: =ROUND(L32*$B$2,2)-0.02 -> 4936.29 | P32: 0.0007918614428
A34: Note 1: First make sure your Excel settings are correct - | B34: See How to Enable Macros tab
A35: Note 2: Please do not Insert, Delete, or Move any cells, columns or rows as this could cause the Macros to fail.
A36: Note 3: The Blue Cells in columns B & C are for manual input, and the Present Value Table will need to be adjusted in column F.
A37: The Orange cells in columns B & C will automatically fill. Also, the Present Value and Amortization Tables will be generated with the
A38: Macro buttons. Please do not make changes to the orange cells or anywhere within the Tables (except column F).
A40: Step 1 - Fill out the "Fixed Lease Payment Receivable Schedule" section above (starting on row 10).
A41: a - If payments escalate over time, list beginning payment amount & # of payments to be received at that amount, then move to line #2
A42: and list the next payment amount & # of payments at that amount, etc.
A43: b - If an extension is deemed Reasonably Certain to be exercised, but the amount is listed as "negotiable", then use the lease
A44: payment amount just prior to the date of extension for those unknown amounts.
A45: c - If a future payment is variable based on an index or interest rate, then calculate those future payments using the current index or rate.
A46: d - If there is an Abated or Free Rent period (skipped payment) indicated in the lease contract, | C46: Desc of Lease Incentives
A47: indicate that with a $0 payment amount (col B) & the number of payments to be skipped (col C). | C47: ='Data Input'!B147 -> Free Rent Period for pmt due 10/15/2025
A48: Make sure to put these skipped payments in the correct order chronologically. For example, if there
A49: is a Free Rent period for payment 13, then list the first 12 payments on the first line, then
A50: line #2 as $0 (col B) and 1 (col C), then line #3 as the continuing payments after the Free Rent period.
A51: e - If a Bonus payment from the lessor is included in the contract, subtract that amount from the payment closest to the proper
A52: chronological period (as described in d above). This may cause that payment amount to be negative.
A53: f - Use the blue box below to describe how payments change over time. For example - (a) Payment increases 5% every 10 yrs;
A54: (b) Appraisal to be completed every 25 years; or (c) Payment recalculated every 5 yrs based on CPI, etc.
A55: Also describe payment frequency if Less Often than Annually.
A56: Fixed + Fixed-In-Substance payment for 1st 5 yrs = $282,000; Payment for yrs 6-10 = $302,000; extension period amount to be negotiated - therefore, using most recent payment amount before extension period of $302,000.
A59: g - If payments are Less Often than Annually,indicate this in the Payment Schedule above by listing first payment on the first row (1 in
A60: col C), then the 2nd row should show how many years to be skipped in col C ($0 in col B), then the 3rd row will show the 2nd payment.
A61: Repeat until all payments & all years are represented in the Payment Schdl (total in col C should tie to total yrs of lease term & cell B4).
A62: h - If there are not enough lines in the table above, use the table below to input the additional payment amounts, and the totals from
A63: the additional table will automatically be added to the Payment Schedule above.
A64: i - Verify that the total # of payments in cell B4 is the same as the sum of col C (cell C16).
A66: Additional Lease Payment Receivable Lines (if needed) | B66: Amount | C66: # of Payments
A67: Payment Amount #5 & # of Payments at this amount | B67: 0 | C67: 0
A68: Payment Amount #6 & # of Payments at this amount | B68: 0 | C68: 0
A69: Payment Amount #7 & # of Payments at this amount | B69: 0 | C69: 0
A70: Payment Amount #8 & # of Payments at this amount | B70: 0 | C70: 0
A71: Payment Amount #9 & # of Payments at this amount | B71: 0 | C71: 0
A72: Payment Amount #10 & # of Payments at this amount | B72: 0 | C72: 0
A73: Payment Amount #11 & # of Payments at this amount | B73: 0 | C73: 0
A74: Payment Amount #12 & # of Payments at this amount | B74: 0 | C74: 0
A75: Payment Amount #13 & # of Payments at this amount | B75: 0 | C75: 0
A76: Payment Amount #14 & # of Payments at this amount | B76: 0 | C76: 0
A77: Payment Amount #15 & # of Payments at this amount | B77: 0 | C77: 0
A78: Payment Amount #16 & # of Payments at this amount | B78: 0 | C78: 0
A79: Payment Amount #17 & # of Payments at this amount | B79: 0 | C79: 0
A80: Payment Amount #18 & # of Payments at this amount | B80: 0 | C80: 0
A81: Payment Amount #19 & # of Payments at this amount | B81: 0 | C81: 0
A82: Payment Amount #20 & # of Payments at this amount | B82: 0 | C82: 0
A83: Payment Amount #21 & # of Payments at this amount | B83: 0 | C83: 0
A84: Payment Amount #22 & # of Payments at this amount | B84: 0 | C84: 0
A85: Payment Amount #23 & # of Payments at this amount | B85: 0 | C85: 0
A86: Payment Amount #24 & # of Payments at this amount | B86: 0 | C86: 0
A87: Payment Amount #25 & # of Payments at this amount | B87: 0 | C87: 0
A88: Total Add'l Lease Payment Amts (will automatically be added to the Schedule above) | B88: =(B67*C67)+(B68*C68)+(B69*C69)+(B70*C70)+(B71*C71)+(B72*C72)+(B73*C73)+(B74*C74)+(B75*C75)+(B76*C76)+(B77*C77)+(B78*C78)+(B79*C79)+(B80*C80)+(B81*C81)+(B82*C82)+(B83*C83)+(B84*C84)+(B85*C85)+(B86*C86)+(B87*C87) -> 0 | C88: =SUM(C67:C87) -> 0
A90: Step 2 - Fill out the "Other Payment Considerations" section (starting on row 18) ONLY if instructed to do so on the Data Input tab
A91: (responses from Data Input tab are shown in col D).
A92: a - The Residual Value Guarantee line should only have an amount listed in Col B if it is Fixed In-Substance and not reliant on a future
A93: consideration (i.e. FMV of leased asset).
A94: b - The Allowance for Uncollectible Leases line should only have an amount listed in col C if economic circumstances, lessee
A95: creditworthiness, and historic information indicate a need for an allowance to be calculated. This amount is listed in col C because
A96: it will not be calculated as part of the Present Value of the Lease Receivable, but will instead reduce the Present Value after it is
A97: calculated as a contra-receivable.
A99: Steps 3 - 8 are OPTIONAL (calculation of Present Value and Amortization Tables)
A100: Step 3 - Click the Macro button below to Generate the first 2 columns of the Present Value (PV) Table.
A103: Step 4 - Using the Payment Receivable Schedule filled out in Steps 1 & 2, fill in the Payment Amounts into col F of the PV Table.
A104: a - If there are 12 payments for the 1st payment amount, and 6 payments for the 2nd payment amount, list the 1st amount in the
A105: first 12 rows of the Table, then the 2nd amount for the next 6 rows, and do the same for the remaining payment amounts listed
A106: in the Payment Schedule until all the payments are filled in on the Table.
A107: b - Make sure not to skip any Free Rent periods. If the Payment Schedule indicates the 13th payment is $0, then row 13 of the
A108: Table should be $0, same as the Payment Schedule.
A109: c - If there are any amounts listed for "Other Payment Considerations", add it to the final payment. For example, if the final
A110: payment is $20,000, and there is a Residual Value Guarantee listed for $5,000, then the final payment in the Table should be $25,000.
A111: d - Check to make sure that the sum of all the payments entered into col F of the Table is the same as the Total Undiscounted Cash
A112: Flows in cell B23.
A114: Step 5 - Click the Macro button below to Calculate Net Present Value and Generate the PV and Amortization Tables.
A118: Step 6 - Check data for accuracy:
A119: a - Check the date of the final payment in the Amortization Table and compare to Lease End Date in cell B8. Make sure the final
A120: payment date is reasonable in comparison to the Lease End Date (within same month if payments are Monthly, within the final
A121: quarter if Quarterly, etc).
A122: b - If payments change (there are amounts in Payment Amount #2 + rows), then check the dates the amounts change in the
A123: Amort Table (columns K & M) to make sure the payments change on the correct dates as per the Lease Contract.
A124: c - If 6a and 6b are BOTH correct, skip to Step 8 (Do NOT click the Start Over Macro Button).
A125: d - If 6a or 6b does not appear to be correct:
A126: i - Double-check the Instructions above (Steps 1 - 6), including the check for # of payments in 1i & check for Table payments in 4d.
A127: ii - Double-check cells B2-B8 by reviewing the Lease Contract. These cells automatically filled based on answers in the Data Input
A128: tab. Make any necessary corrections in the Data Input tab (NOT in cells B2-B8) - the corresponding question #s are referenced above.
A129: iii - Double-Check the Payment Schedule and Other Payment Considerations sections. Compare back to the Lease contract to
A130: verify, and correct as necessary.
A131: e - Once corrections have been made, click the Macro button below to Delete the PV & Amortization Tables.
A135: Step 7 - Repeat Steps 3-6 as needed until all checks (1i, 4d, 6a, 6b, and 6di-6diii) are correct.
A137: Step 8 - See Net Present Value calculated in cell B25 for the Lease Receivable and the Deferred Inflow of Resources in cell B28.
A138: Also, see Present Value Table in columns E-G,
A139: and Amortization Table in columns J-P.

Sheet Lease 1 - PV Calc
A1: Present Value Calculations tab - Lease 1 (column C) | B1: Contract # | C1: ='Data Input'!C35 -> 0
A2: Periodic Interest Rate (Section VII, #27-28 from Data Input tab) | B2: ='Data Input'!C171 -> 0
A3: Cash Flows at Beginning or End (Section V, #19) | B3: ='Data Input'!C117 -> 0 | C3: Important:
A4: Number of payments (Section V, #18) | B4: ='Data Input'!C114 -> 0 | C4: Do not insert/delete/move
A5: Frequency of payments (Section V, #17) | B5: ='Data Input'!C110 -> 0 | C5: cells B2:B8
A6: Date of first payment (Section V, #20) | B6: ='Data Input'!C120 -> 00:00:00 | C6: (macros depend on them)
A7: Lease Start Date (Section V, #12) | B7: ='Data Input'!C96 -> 00:00:00
A8: Lease End Date including Extensions (Section V, #15) | B8: ='Data Input'!C105 -> 1900-01-30
A10: Fixed Lease Payment Receivable Schedule (Section VI, #21 & see instructions below): | B10: Amount | C10: # of Payments
A11: Payment Amount #1 & # of Payments at this amount | B11: 0 | C11: 0
A12: Payment Amount #2 & # of Payments at this amount | B12: 0 | C12: 0
A13: Payment Amount #3 & # of Payments at this amount | B13: 0 | C13: 0
A14: Payment Amount #4 & # of Payments at this amount | B14: 0 | C14: 0
A15: Totals from add'l table below if needed) | B15: =B88 -> 0 | C15: =C88 -> 0
A16: Total Lease Payments (sum of all payment amounts * # of payments) | B16: =(B11*C11)+(B12*C12)+(B13*C13)+(B14*C14)+(B15) -> 0 | C16: =SUM(C11:C15) -> 0
D17: Response per
A18: Other Payment Considerations: | B18: Residual Value Guar | C18: Allow for Uncollectible Amt | D18: Data Input tab
A19: Residual Value Guarantee if Fixed-in-Substance (Section VI, #24a & b) | B19: 0 | D19: ='Data Input'!C141 -> 0
A20: Allowance for Uncollectible Leases (Section VI, #26)
A21: For example, could be calculated as a percentage of the total lease pmt rcvbl above | C21: 0 | D21: ='Data Input'!C151 -> 0
A22: Total Other Payment Considerations | B22: =SUM(B19:B21) -> 0
A23: Total Undiscounted Cash Flows (Total Payments + Other Considerations) | B23: =B16+B22 -> 0
C24: Important:
A25: Net Present Value (calculated after Macros below run) | B25: =SUM(G:G) -> 0 | C25: Do not insert/delete/move
C26: NPV must be cell B25
A27: Additions/Subtractions for Deferred Inflow of Resources (Section IV, #9-11) | B27: ='Data Input'!C75-'Data Input'!C76 -> 0 | C27: (macros depend on it)
A28: Deferred Inflow of Resources (calculated after Macros below run) | B28: =B25+B27 -> 0
A30: The Agency is not required to calculate the Present Value and/or enable Macros,
A31: but Steps 1 & 2 of the instructions below are REQUIRED to be completed.
A32: After completing Steps 1 & 2, if desired to calculate the Present Value, complete Steps 3 - 8:
A34: Note 1: First make sure your Excel settings are correct - | B34: See How to Enable Macros tab
A35: Note 2: Please do not Insert, Delete, or Move any cells, columns or rows as this could cause the Macros to fail.
A36: Note 3: The Blue Cells in columns B & C are for manual input, and the Present Value Table will need to be adjusted in column F.
A37: The Orange cells in columns B & C will automatically fill. Also, the Present Value and Amortization Tables will be generated with the
A38: Macro buttons. Please do not make changes to the orange cells or anywhere within the Tables (except column F).
A40: Step 1 - Fill out the "Fixed Lease Payment Receivable Schedule" section above (starting on row 10).
A41: a - If payments escalate over time, list beginning payment amount & # of payments to be received at that amount, then move to line #2
A42: and list the next payment amount & # of payments at that amount, etc.
A43: b - If an extension is deemed Reasonably Certain to be exercised, but the amount is listed as "negotiable", then use the lease
A44: payment amount just prior to the date of extension for those unknown amounts.
A45: c - If a future payment is variable based on an index or interest rate, then calculate those future payments using the current index or rate.
A46: d - If there is an Abated or Free Rent period (skipped payment) indicated in the lease contract, | C46: Desc of Lease Incentives
A47: indicate that with a $0 payment amount (col B) & the number of payments to be skipped (col C). | C47: ='Data Input'!C147 -> 0
A48: Make sure to put these skipped payments in the correct order chronologically. For example, if there
A49: is a Free Rent period for payment 13, then list the first 12 payments on the first line, then
A50: line #2 as $0 (col B) and 1 (col C), then line #3 as the continuing payments after the Free Rent period.
A51: e - If a Bonus payment from the lessor is included in the contract, subtract that amount from the payment closest to the proper
A52: chronological period (as described in d above). This may cause that payment amount to be negative.
A53: f - Use the blue box below to describe how payments change over time. For example - (a) Payment increases 5% every 10 yrs;
A54: (b) Appraisal to be completed every 25 years; or (c) Payment recalculated every 5 yrs based on CPI, etc.
A55: Also describe payment frequency if Less Often than Annually.
A59: g - If payments are Less Often than Annually,indicate this in the Payment Schedule above by listing first payment on the first row (1 in
A60: col C), then the 2nd row should show how many years to be skipped in col C ($0 in col B), then the 3rd row will show the 2nd payment.
A61: Repeat until all payments & all years are represented in the Payment Schdl (total in col C should tie to total yrs of lease term & cell B4).
A62: h - If there are not enough lines in the table above, use the table below to input the additional payment amounts, and the totals from
A63: the additional table will automatically be added to the Payment Schedule above.
A64: i - Verify that the total # of payments in cell B4 is the same as the sum of col C (cell C16).
A66: Additional Lease Payment Receivable Lines (if needed) | B66: Amount | C66: # of Payments
A67: Payment Amount #5 & # of Payments at this amount | B67: 0 | C67: 0
A68: Payment Amount #6 & # of Payments at this amount | B68: 0 | C68: 0
A69: Payment Amount #7 & # of Payments at this amount | B69: 0 | C69: 0
A70: Payment Amount #8 & # of Payments at this amount | B70: 0 | C70: 0
A71: Payment Amount #9 & # of Payments at this amount | B71: 0 | C71: 0
A72: Payment Amount #10 & # of Payments at this amount | B72: 0 | C72: 0
A73: Payment Amount #11 & # of Payments at this amount | B73: 0 | C73: 0
A74: Payment Amount #12 & # of Payments at this amount | B74: 0 | C74: 0
A75: Payment Amount #13 & # of Payments at this amount | B75: 0 | C75: 0
A76: Payment Amount #14 & # of Payments at this amount | B76: 0 | C76: 0
A77: Payment Amount #15 & # of Payments at this amount | B77: 0 | C77: 0
A78: Payment Amount #16 & # of Payments at this amount | B78: 0 | C78: 0
A79: Payment Amount #17 & # of Payments at this amount | B79: 0 | C79: 0
A80: Payment Amount #18 & # of Payments at this amount | B80: 0 | C80: 0
A81: Payment Amount #19 & # of Payments at this amount | B81: 0 | C81: 0
A82: Payment Amount #20 & # of Payments at this amount | B82: 0 | C82: 0
A83: Payment Amount #21 & # of Payments at this amount | B83: 0 | C83: 0
A84: Payment Amount #22 & # of Payments at this amount | B84: 0 | C84: 0
A85: Payment Amount #23 & # of Payments at this amount | B85: 0 | C85: 0
A86: Payment Amount #24 & # of Payments at this amount | B86: 0 | C86: 0
A87: Payment Amount #25 & # of Payments at this amount | B87: 0 | C87: 0
A88: Total Add'l Lease Payment Amts (will automatically be added to the Schedule above) | B88: =(B67*C67)+(B68*C68)+(B69*C69)+(B70*C70)+(B71*C71)+(B72*C72)+(B73*C73)+(B74*C74)+(B75*C75)+(B76*C76)+(B77*C77)+(B78*C78)+(B79*C79)+(B80*C80)+(B81*C81)+(B82*C82)+(B83*C83)+(B84*C84)+(B85*C85)+(B86*C86)+(B87*C87) -> 0 | C88: =SUM(C67:C87) -> 0
A90: Step 2 - Fill out the "Other Payment Considerations" section (starting on row 18) ONLY if instructed to do so on the Data Input tab
A91: (responses from Data Input tab are shown in col D).
A92: a - The Residual Value Guarantee line should only have an amount listed in Col B if it is Fixed In-Substance and not reliant on a future
A93: consideration (i.e. FMV of leased asset).
A94: b - The Allowance for Uncollectible Leases line should only have an amount listed in col C if economic circumstances, lessee
A95: creditworthiness, and historic information indicate a need for an allowance to be calculated. This amount is listed in col C because
A96: it will not be calculated as part of the Present Value of the Lease Receivable, but will instead reduce the Present Value after it is
A97: calculated as a contra-receivable.
A99: Steps 3 - 8 are OPTIONAL (calculation of Present Value and Amortization Tables)
A100: Step 3 - Click the Macro button below to Generate the first 2 columns of the Present Value (PV) Table.
A103: Step 4 - Using the Payment Receivable Schedule filled out in Steps 1 & 2, fill in the Payment Amounts into col F of the PV Table.
A104: a - If there are 12 payments for the 1st payment amount, and 6 payments for the 2nd payment amount, list the 1st amount in the
A105: first 12 rows of the Table, then the 2nd amount for the next 6 rows, and do the same for the remaining payment amounts listed
A106: in the Payment Schedule until all the payments are filled in on the Table.
A107: b - Make sure not to skip any Free Rent periods. If the Payment Schedule indicates the 13th payment is $0, then row 13 of the
A108: Table should be $0, same as the Payment Schedule.
A109: c - If there are any amounts listed for "Other Payment Considerations", add it to the final payment. For example, if the final
A110: payment is $20,000, and there is a Residual Value Guarantee listed for $5,000, then the final payment in the Table should be $25,000.
A111: d - Check to make sure that the sum of all the payments entered into col F of the Table is the same as the Total Undiscounted Cash
A112: Flows in cell B23.
A114: Step 5 - Click the Macro button below to Calculate Net Present Value and Generate the PV and Amortization Tables.
A118: Step 6 - Check data for accuracy:
A119: a - Check the date of the final payment in the Amortization Table and compare to Lease End Date in cell B8. Make sure the final
A120: payment date is reasonable in comparison to the Lease End Date (within same month if payments are Monthly, within the final
A121: quarter if Quarterly, etc).
A122: b - If payments change (there are amounts in Payment Amount #2 + rows), then check the dates the amounts change in the
A123: Amort Table (columns K & M) to make sure the payments change on the correct dates as per the Lease Contract.
A124: c - If 6a and 6b are BOTH correct, skip to Step 8 (Do NOT click the Start Over Macro Button).
A125: d - If 6a or 6b does not appear to be correct:
A126: i - Double-check the Instructions above (Steps 1 - 6), including the check for # of payments in 1i & check for Table payments in 4d.
A127: ii - Double-check cells B2-B8 by reviewing the Lease Contract. These cells automatically filled based on answers in the Data Input
A128: tab. Make any necessary corrections in the Data Input tab (NOT in cells B2-B8) - the corresponding question #s are referenced above.
A129: iii - Double-Check the Payment Schedule and Other Payment Considerations sections. Compare back to the Lease contract to
A130: verify, and correct as necessary.
A131: e - Once corrections have been made, click the Macro button below to Delete the PV & Amortization Tables.
A135: Step 7 - Repeat Steps 3-6 as needed until all checks (1i, 4d, 6a, 6b, and 6di-6diii) are correct.
A137: Step 8 - See Net Present Value calculated in cell B25 for the Lease Receivable and the Deferred Inflow of Resources in cell B28.
A138: Also, see Present Value Table in columns E-G,
A139: and Amortization Table in columns J-P.

Sheet Lease 2 - PV Calc
A1: Present Value Calculations tab - Lease 2 (column D) | B1: Contract # | C1: ='Data Input'!D35 -> 0
A2: Periodic Interest Rate (Section VII, #27-28 from Data Input tab) | B2: ='Data Input'!D171 -> 0
A3: Cash Flows at Beginning or End (Section V, #19) | B3: ='Data Input'!D117 -> 0 | C3: Important:
A4: Number of payments (Section V, #18) | B4: ='Data Input'!D114 -> 0 | C4: Do not insert/delete/move
A5: Frequency of payments (Section V, #17) | B5: ='Data Input'!D110 -> 0 | C5: cells B2:B8
A6: Date of first payment (Section V, #20) | B6: ='Data Input'!D120 -> 00:00:00 | C6: (macros depend on them)
A7: Lease Start Date (Section V, #12) | B7: ='Data Input'!D96 -> 00:00:00
A8: Lease End Date including Extensions (Section V, #15) | B8: ='Data Input'!D105 -> 1900-01-30
A10: Fixed Lease Payment Receivable Schedule (Section VI, #21 & see instructions below): | B10: Amount | C10: # of Payments
A11: Payment Amount #1 & # of Payments at this amount | B11: 0 | C11: 0
A12: Payment Amount #2 & # of Payments at this amount | B12: 0 | C12: 0
A13: Payment Amount #3 & # of Payments at this amount | B13: 0 | C13: 0
A14: Payment Amount #4 & # of Payments at this amount | B14: 0 | C14: 0
A15: Totals from add'l table below if needed) | B15: =B88 -> 0 | C15: =C88 -> 0
A16: Total Lease Payments (sum of all payment amounts * # of payments) | B16: =(B11*C11)+(B12*C12)+(B13*C13)+(B14*C14)+(B15) -> 0 | C16: =SUM(C11:C15) -> 0
D17: Response per
A18: Other Payment Considerations: | B18: Residual Value Guar | C18: Allow for Uncollectible Amt | D18: Data Input tab
A19: Residual Value Guarantee if Fixed-in-Substance (Section VI, #24a & b) | B19: 0 | D19: ='Data Input'!D141 -> 0
A20: Allowance for Uncollectible Leases (Section VI, #26)
A21: For example, could be calculated as a percentage of the total lease pmt rcvbl above | C21: 0 | D21: ='Data Input'!D151 -> 0
A22: Total Other Payment Considerations | B22: =SUM(B19:B21) -> 0
A23: Total Undiscounted Cash Flows (Total Payments + Other Considerations) | B23: =B16+B22 -> 0
C24: Important:
A25: Net Present Value (calculated after Macros below run) | B25: =SUM(G:G) -> 0 | C25: Do not insert/delete/move
C26: NPV must be cell B25
A27: Additions/Subtractions for Deferred Inflow of Resources (Section IV, #9-11) | B27: ='Data Input'!D75-'Data Input'!D76 -> 0 | C27: (macros depend on it)
A28: Deferred Inflow of Resources (calculated after Macros below run) | B28: =B25+B27 -> 0
A30: The Agency is not required to calculate the Present Value and/or enable Macros,
A31: but Steps 1 & 2 of the instructions below are REQUIRED to be completed.
A32: After completing Steps 1 & 2, if desired to calculate the Present Value, complete Steps 3 - 8:
A34: Note 1: First make sure your Excel settings are correct - | B34: See How to Enable Macros tab
A35: Note 2: Please do not Insert, Delete, or Move any cells, columns or rows as this could cause the Macros to fail.
A36: Note 3: The Blue Cells in columns B & C are for manual input, and the Present Value Table will need to be adjusted in column F.
A37: The Orange cells in columns B & C will automatically fill. Also, the Present Value and Amortization Tables will be generated with the
A38: Macro buttons. Please do not make changes to the orange cells or anywhere within the Tables (except column F).
A40: Step 1 - Fill out the "Fixed Lease Payment Receivable Schedule" section above (starting on row 10).
A41: a - If payments escalate over time, list beginning payment amount & # of payments to be received at that amount, then move to line #2
A42: and list the next payment amount & # of payments at that amount, etc.
A43: b - If an extension is deemed Reasonably Certain to be exercised, but the amount is listed as "negotiable", then use the lease
A44: payment amount just prior to the date of extension for those unknown amounts.
A45: c - If a future payment is variable based on an index or interest rate, then calculate those future payments using the current index or rate.
A46: d - If there is an Abated or Free Rent period (skipped payment) indicated in the lease contract, | C46: Desc of Lease Incentives
A47: indicate that with a $0 payment amount (col B) & the number of payments to be skipped (col C). | C47: ='Data Input'!D147 -> 0
A48: Make sure to put these skipped payments in the correct order chronologically. For example, if there
A49: is a Free Rent period for payment 13, then list the first 12 payments on the first line, then
A50: line #2 as $0 (col B) and 1 (col C), then line #3 as the continuing payments after the Free Rent period.
A51: e - If a Bonus payment from the lessor is included in the contract, subtract that amount from the payment closest to the proper
A52: chronological period (as described in d above). This may cause that payment amount to be negative.
A53: f - Use the blue box below to describe how payments change over time. For example - (a) Payment increases 5% every 10 yrs;
A54: (b) Appraisal to be completed every 25 years; or (c) Payment recalculated every 5 yrs based on CPI, etc.
A55: Also describe payment frequency if Less Often than Annually.
A59: g - If payments are Less Often than Annually,indicate this in the Payment Schedule above by listing first payment on the first row (1 in
A60: col C), then the 2nd row should show how many years to be skipped in col C ($0 in col B), then the 3rd row will show the 2nd payment.
A61: Repeat until all payments & all years are represented in the Payment Schdl (total in col C should tie to total yrs of lease term & cell B4).
A62: h - If there are not enough lines in the table above, use the table below to input the additional payment amounts, and the totals from
A63: the additional table will automatically be added to the Payment Schedule above.
A64: i - Verify that the total # of payments in cell B4 is the same as the sum of col C (cell C16).
A66: Additional Lease Payment Receivable Lines (if needed) | B66: Amount | C66: # of Payments
A67: Payment Amount #5 & # of Payments at this amount | B67: 0 | C67: 0
A68: Payment Amount #6 & # of Payments at this amount | B68: 0 | C68: 0
A69: Payment Amount #7 & # of Payments at this amount | B69: 0 | C69: 0
A70: Payment Amount #8 & # of Payments at this amount | B70: 0 | C70: 0
A71: Payment Amount #9 & # of Payments at this amount | B71: 0 | C71: 0
A72: Payment Amount #10 & # of Payments at this amount | B72: 0 | C72: 0
A73: Payment Amount #11 & # of Payments at this amount | B73: 0 | C73: 0
A74: Payment Amount #12 & # of Payments at this amount | B74: 0 | C74: 0
A75: Payment Amount #13 & # of Payments at this amount | B75: 0 | C75: 0
A76: Payment Amount #14 & # of Payments at this amount | B76: 0 | C76: 0
A77: Payment Amount #15 & # of Payments at this amount | B77: 0 | C77: 0
A78: Payment Amount #16 & # of Payments at this amount | B78: 0 | C78: 0
A79: Payment Amount #17 & # of Payments at this amount | B79: 0 | C79: 0
A80: Payment Amount #18 & # of Payments at this amount | B80: 0 | C80: 0
A81: Payment Amount #19 & # of Payments at this amount | B81: 0 | C81: 0
A82: Payment Amount #20 & # of Payments at this amount | B82: 0 | C82: 0
A83: Payment Amount #21 & # of Payments at this amount | B83: 0 | C83: 0
A84: Payment Amount #22 & # of Payments at this amount | B84: 0 | C84: 0
A85: Payment Amount #23 & # of Payments at this amount | B85: 0 | C85: 0
A86: Payment Amount #24 & # of Payments at this amount | B86: 0 | C86: 0
A87: Payment Amount #25 & # of Payments at this amount | B87: 0 | C87: 0
A88: Total Add'l Lease Payment Amts (will automatically be added to the Schedule above) | B88: =(B67*C67)+(B68*C68)+(B69*C69)+(B70*C70)+(B71*C71)+(B72*C72)+(B73*C73)+(B74*C74)+(B75*C75)+(B76*C76)+(B77*C77)+(B78*C78)+(B79*C79)+(B80*C80)+(B81*C81)+(B82*C82)+(B83*C83)+(B84*C84)+(B85*C85)+(B86*C86)+(B87*C87) -> 0 | C88: =SUM(C67:C87) -> 0
A90: Step 2 - Fill out the "Other Payment Considerations" section (starting on row 18) ONLY if instructed to do so on the Data Input tab
A91: (responses from Data Input tab are shown in col D).
A92: a - The Residual Value Guarantee line should only have an amount listed in Col B if it is Fixed In-Substance and not reliant on a future
A93: consideration (i.e. FMV of leased asset).
A94: b - The Allowance for Uncollectible Leases line should only have an amount listed in col C if economic circumstances, lessee
A95: creditworthiness, and historic information indicate a need for an allowance to be calculated. This amount is listed in col C because
A96: it will not be calculated as part of the Present Value of the Lease Receivable, but will instead reduce the Present Value after it is
A97: calculated as a contra-receivable.
A99: Steps 3 - 8 are OPTIONAL (calculation of Present Value and Amortization Tables)
A100: Step 3 - Click the Macro button below to Generate the first 2 columns of the Present Value (PV) Table.
A103: Step 4 - Using the Payment Receivable Schedule filled out in Steps 1 & 2, fill in the Payment Amounts into col F of the PV Table.
A104: a - If there are 12 payments for the 1st payment amount, and 6 payments for the 2nd payment amount, list the 1st amount in the
A105: first 12 rows of the Table, then the 2nd amount for the next 6 rows, and do the same for the remaining payment amounts listed
A106: in the Payment Schedule until all the payments are filled in on the Table.
A107: b - Make sure not to skip any Free Rent periods. If the Payment Schedule indicates the 13th payment is $0, then row 13 of the
A108: Table should be $0, same as the Payment Schedule.
A109: c - If there are any amounts listed for "Other Payment Considerations", add it to the final payment. For example, if the final
A110: payment is $20,000, and there is a Residual Value Guarantee listed for $5,000, then the final payment in the Table should be $25,000.
A111: d - Check to make sure that the sum of all the payments entered into col F of the Table is the same as the Total Undiscounted Cash
A112: Flows in cell B23.
A114: Step 5 - Click the Macro button below to Calculate Net Present Value and Generate the PV and Amortization Tables.
A118: Step 6 - Check data for accuracy:
A119: a - Check the date of the final payment in the Amortization Table and compare to Lease End Date in cell B8. Make sure the final
A120: payment date is reasonable in comparison to the Lease End Date (within same month if payments are Monthly, within the final
A121: quarter if Quarterly, etc).
A122: b - If payments change (there are amounts in Payment Amount #2 + rows), then check the dates the amounts change in the
A123: Amort Table (columns K & M) to make sure the payments change on the correct dates as per the Lease Contract.
A124: c - If 6a and 6b are BOTH correct, skip to Step 8 (Do NOT click the Start Over Macro Button).
A125: d - If 6a or 6b does not appear to be correct:
A126: i - Double-check the Instructions above (Steps 1 - 6), including the check for # of payments in 1i & check for Table payments in 4d.
A127: ii - Double-check cells B2-B8 by reviewing the Lease Contract. These cells automatically filled based on answers in the Data Input
A128: tab. Make any necessary corrections in the Data Input tab (NOT in cells B2-B8) - the corresponding question #s are referenced above.
A129: iii - Double-Check the Payment Schedule and Other Payment Considerations sections. Compare back to the Lease contract to
A130: verify, and correct as necessary.
A131: e - Once corrections have been made, click the Macro button below to Delete the PV & Amortization Tables.
A135: Step 7 - Repeat Steps 3-6 as needed until all checks (1i, 4d, 6a, 6b, and 6di-6diii) are correct.
A137: Step 8 - See Net Present Value calculated in cell B25 for the Lease Receivable and the Deferred Inflow of Resources in cell B28.
A138: Also, see Present Value Table in columns E-G,
A139: and Amortization Table in columns J-P.

Sheet Lease 3 - PV Calc
A1: Present Value Calculations tab - Lease 3 (column E) | B1: Contract # | C1: ='Data Input'!E35 -> 0
A2: Periodic Interest Rate (Section VII, #27-28 from Data Input tab) | B2: ='Data Input'!E171 -> 0
A3: Cash Flows at Beginning or End (Section V, #19) | B3: ='Data Input'!E117 -> 0 | C3: Important:
A4: Number of payments (Section V, #18) | B4: ='Data Input'!E114 -> 0 | C4: Do not insert/delete/move
A5: Frequency of payments (Section V, #17) | B5: ='Data Input'!E110 -> 0 | C5: cells B2:B8
A6: Date of first payment (Section V, #20) | B6: ='Data Input'!E120 -> 00:00:00 | C6: (macros depend on them)
A7: Lease Start Date (Section V, #12) | B7: ='Data Input'!E96 -> 00:00:00
A8: Lease End Date including Extensions (Section V, #15) | B8: ='Data Input'!E105 -> 1900-01-30
A10: Fixed Lease Payment Receivable Schedule (Section VI, #21 & see instructions below): | B10: Amount | C10: # of Payments
A11: Payment Amount #1 & # of Payments at this amount | B11: 0 | C11: 0
A12: Payment Amount #2 & # of Payments at this amount | B12: 0 | C12: 0
A13: Payment Amount #3 & # of Payments at this amount | B13: 0 | C13: 0
A14: Payment Amount #4 & # of Payments at this amount | B14: 0 | C14: 0
A15: Totals from add'l table below if needed) | B15: =B88 -> 0 | C15: =C88 -> 0
A16: Total Lease Payments (sum of all payment amounts * # of payments) | B16: =(B11*C11)+(B12*C12)+(B13*C13)+(B14*C14)+(B15) -> 0 | C16: =SUM(C11:C15) -> 0
D17: Response per
A18: Other Payment Considerations: | B18: Residual Value Guar | C18: Allow for Uncollectible Amt | D18: Data Input tab
A19: Residual Value Guarantee if Fixed-in-Substance (Section VI, #24a & b) | B19: 0 | D19: ='Data Input'!E141 -> 0
A20: Allowance for Uncollectible Leases (Section VI, #26)
A21: For example, could be calculated as a percentage of the total lease pmt rcvbl above | C21: 0 | D21: ='Data Input'!E151 -> 0
A22: Total Other Payment Considerations | B22: =SUM(B19:B21) -> 0
A23: Total Undiscounted Cash Flows (Total Payments + Other Considerations) | B23: =B16+B22 -> 0
C24: Important:
A25: Net Present Value (calculated after Macros below run) | B25: =SUM(G:G) -> 0 | C25: Do not insert/delete/move
C26: NPV must be cell B25
A27: Additions/Subtractions for Deferred Inflow of Resources (Section IV, #9-11) | B27: ='Data Input'!E75-'Data Input'!E76 -> 0 | C27: (macros depend on it)
A28: Deferred Inflow of Resources (calculated after Macros below run) | B28: =B25+B27 -> 0
A30: The Agency is not required to calculate the Present Value and/or enable Macros,
A31: but Steps 1 & 2 of the instructions below are REQUIRED to be completed.
A32: After completing Steps 1 & 2, if desired to calculate the Present Value, complete Steps 3 - 8:
A34: Note 1: First make sure your Excel settings are correct - | B34: See How to Enable Macros tab
A35: Note 2: Please do not Insert, Delete, or Move any cells, columns or rows as this could cause the Macros to fail.
A36: Note 3: The Blue Cells in columns B & C are for manual input, and the Present Value Table will need to be adjusted in column F.
A37: The Orange cells in columns B & C will automatically fill. Also, the Present Value and Amortization Tables will be generated with the
A38: Macro buttons. Please do not make changes to the orange cells or anywhere within the Tables (except column F).
A40: Step 1 - Fill out the "Fixed Lease Payment Receivable Schedule" section above (starting on row 10).
A41: a - If payments escalate over time, list beginning payment amount & # of payments to be received at that amount, then move to line #2
A42: and list the next payment amount & # of payments at that amount, etc.
A43: b - If an extension is deemed Reasonably Certain to be exercised, but the amount is listed as "negotiable", then use the lease
A44: payment amount just prior to the date of extension for those unknown amounts.
A45: c - If a future payment is variable based on an index or interest rate, then calculate those future payments using the current index or rate.
A46: d - If there is an Abated or Free Rent period (skipped payment) indicated in the lease contract, | C46: Desc of Lease Incentives
A47: indicate that with a $0 payment amount (col B) & the number of payments to be skipped (col C). | C47: ='Data Input'!E147 -> 0
A48: Make sure to put these skipped payments in the correct order chronologically. For example, if there
A49: is a Free Rent period for payment 13, then list the first 12 payments on the first line, then
A50: line #2 as $0 (col B) and 1 (col C), then line #3 as the continuing payments after the Free Rent period.
A51: e - If a Bonus payment from the lessor is included in the contract, subtract that amount from the payment closest to the proper
A52: chronological period (as described in d above). This may cause that payment amount to be negative.
A53: f - Use the blue box below to describe how payments change over time. For example - (a) Payment increases 5% every 10 yrs;
A54: (b) Appraisal to be completed every 25 years; or (c) Payment recalculated every 5 yrs based on CPI, etc.
A55: Also describe payment frequency if Less Often than Annually.
A59: g - If payments are Less Often than Annually,indicate this in the Payment Schedule above by listing first payment on the first row (1 in
A60: col C), then the 2nd row should show how many years to be skipped in col C ($0 in col B), then the 3rd row will show the 2nd payment.
A61: Repeat until all payments & all years are represented in the Payment Schdl (total in col C should tie to total yrs of lease term & cell B4).
A62: h - If there are not enough lines in the table above, use the table below to input the additional payment amounts, and the totals from
A63: the additional table will automatically be added to the Payment Schedule above.
A64: i - Verify that the total # of payments in cell B4 is the same as the sum of col C (cell C16).
A66: Additional Lease Payment Receivable Lines (if needed) | B66: Amount | C66: # of Payments
A67: Payment Amount #5 & # of Payments at this amount | B67: 0 | C67: 0
A68: Payment Amount #6 & # of Payments at this amount | B68: 0 | C68: 0
A69: Payment Amount #7 & # of Payments at this amount | B69: 0 | C69: 0
A70: Payment Amount #8 & # of Payments at this amount | B70: 0 | C70: 0
A71: Payment Amount #9 & # of Payments at this amount | B71: 0 | C71: 0
A72: Payment Amount #10 & # of Payments at this amount | B72: 0 | C72: 0
A73: Payment Amount #11 & # of Payments at this amount | B73: 0 | C73: 0
A74: Payment Amount #12 & # of Payments at this amount | B74: 0 | C74: 0
A75: Payment Amount #13 & # of Payments at this amount | B75: 0 | C75: 0
A76: Payment Amount #14 & # of Payments at this amount | B76: 0 | C76: 0
A77: Payment Amount #15 & # of Payments at this amount | B77: 0 | C77: 0
A78: Payment Amount #16 & # of Payments at this amount | B78: 0 | C78: 0
A79: Payment Amount #17 & # of Payments at this amount | B79: 0 | C79: 0
A80: Payment Amount #18 & # of Payments at this amount | B80: 0 | C80: 0
A81: Payment Amount #19 & # of Payments at this amount | B81: 0 | C81: 0
A82: Payment Amount #20 & # of Payments at this amount | B82: 0 | C82: 0
A83: Payment Amount #21 & # of Payments at this amount | B83: 0 | C83: 0
A84: Payment Amount #22 & # of Payments at this amount | B84: 0 | C84: 0
A85: Payment Amount #23 & # of Payments at this amount | B85: 0 | C85: 0
A86: Payment Amount #24 & # of Payments at this amount | B86: 0 | C86: 0
A87: Payment Amount #25 & # of Payments at this amount | B87: 0 | C87: 0
A88: Total Add'l Lease Payment Amts (will automatically be added to the Schedule above) | B88: =(B67*C67)+(B68*C68)+(B69*C69)+(B70*C70)+(B71*C71)+(B72*C72)+(B73*C73)+(B74*C74)+(B75*C75)+(B76*C76)+(B77*C77)+(B78*C78)+(B79*C79)+(B80*C80)+(B81*C81)+(B82*C82)+(B83*C83)+(B84*C84)+(B85*C85)+(B86*C86)+(B87*C87) -> 0 | C88: =SUM(C67:C87) -> 0
A90: Step 2 - Fill out the "Other Payment Considerations" section (starting on row 18) ONLY if instructed to do so on the Data Input tab
A91: (responses from Data Input tab are shown in col D).
A92: a - The Residual Value Guarantee line should only have an amount listed in Col B if it is Fixed In-Substance and not reliant on a future
A93: consideration (i.e. FMV of leased asset).
A94: b - The Allowance for Uncollectible Leases line should only have an amount listed in col C if economic circumstances, lessee
A95: creditworthiness, and historic information indicate a need for an allowance to be calculated. This amount is listed in col C because
A96: it will not be calculated as part of the Present Value of the Lease Receivable, but will instead reduce the Present Value after it is
A97: calculated as a contra-receivable.
A99: Steps 3 - 8 are OPTIONAL (calculation of Present Value and Amortization Tables)
A100: Step 3 - Click the Macro button below to Generate the first 2 columns of the Present Value (PV) Table.
A103: Step 4 - Using the Payment Receivable Schedule filled out in Steps 1 & 2, fill in the Payment Amounts into col F of the PV Table.
A104: a - If there are 12 payments for the 1st payment amount, and 6 payments for the 2nd payment amount, list the 1st amount in the
A105: first 12 rows of the Table, then the 2nd amount for the next 6 rows, and do the same for the remaining payment amounts listed
A106: in the Payment Schedule until all the payments are filled in on the Table.
A107: b - Make sure not to skip any Free Rent periods. If the Payment Schedule indicates the 13th payment is $0, then row 13 of the
A108: Table should be $0, same as the Payment Schedule.
A109: c - If there are any amounts listed for "Other Payment Considerations", add it to the final payment. For example, if the final
A110: payment is $20,000, and there is a Residual Value Guarantee listed for $5,000, then the final payment in the Table should be $25,000.
A111: d - Check to make sure that the sum of all the payments entered into col F of the Table is the same as the Total Undiscounted Cash
A112: Flows in cell B23.
A114: Step 5 - Click the Macro button below to Calculate Net Present Value and Generate the PV and Amortization Tables.
A118: Step 6 - Check data for accuracy:
A119: a - Check the date of the final payment in the Amortization Table and compare to Lease End Date in cell B8. Make sure the final
A120: payment date is reasonable in comparison to the Lease End Date (within same month if payments are Monthly, within the final
A121: quarter if Quarterly, etc).
A122: b - If payments change (there are amounts in Payment Amount #2 + rows), then check the dates the amounts change in the
A123: Amort Table (columns K & M) to make sure the payments change on the correct dates as per the Lease Contract.
A124: c - If 6a and 6b are BOTH correct, skip to Step 8 (Do NOT click the Start Over Macro Button).
A125: d - If 6a or 6b does not appear to be correct:
A126: i - Double-check the Instructions above (Steps 1 - 6), including the check for # of payments in 1i & check for Table payments in 4d.
A127: ii - Double-check cells B2-B8 by reviewing the Lease Contract. These cells automatically filled based on answers in the Data Input
A128: tab. Make any necessary corrections in the Data Input tab (NOT in cells B2-B8) - the corresponding question #s are referenced above.
A129: iii - Double-Check the Payment Schedule and Other Payment Considerations sections. Compare back to the Lease contract to
A130: verify, and correct as necessary.
A131: e - Once corrections have been made, click the Macro button below to Delete the PV & Amortization Tables.
A135: Step 7 - Repeat Steps 3-6 as needed until all checks (1i, 4d, 6a, 6b, and 6di-6diii) are correct.
A137: Step 8 - See Net Present Value calculated in cell B25 for the Lease Receivable and the Deferred Inflow of Resources in cell B28.
A138: Also, see Present Value Table in columns E-G,
A139: and Amortization Table in columns J-P.

Sheet Lease 4 - PV Calc
A1: Present Value Calculations tab - Lease 4 (column F) | B1: Contract # | C1: ='Data Input'!F35 -> 0
A2: Periodic Interest Rate (Section VII, #27-28 from Data Input tab) | B2: ='Data Input'!F171 -> 0
A3: Cash Flows at Beginning or End (Section V, #19) | B3: ='Data Input'!F117 -> 0 | C3: Important:
A4: Number of payments (Section V, #18) | B4: ='Data Input'!F114 -> 0 | C4: Do not insert/delete/move
A5: Frequency of payments (Section V, #17) | B5: ='Data Input'!F110 -> 0 | C5: cells B2:B8
A6: Date of first payment (Section V, #20) | B6: ='Data Input'!F120 -> 00:00:00 | C6: (macros depend on them)
A7: Lease Start Date (Section V, #12) | B7: ='Data Input'!F96 -> 00:00:00
A8: Lease End Date including Extensions (Section V, #15) | B8: ='Data Input'!F105 -> 1900-01-30
A10: Fixed Lease Payment Receivable Schedule (Section VI, #21 & see instructions below): | B10: Amount | C10: # of Payments
A11: Payment Amount #1 & # of Payments at this amount | B11: 0 | C11: 0
A12: Payment Amount #2 & # of Payments at this amount | B12: 0 | C12: 0
A13: Payment Amount #3 & # of Payments at this amount | B13: 0 | C13: 0
A14: Payment Amount #4 & # of Payments at this amount | B14: 0 | C14: 0
A15: Totals from add'l table below if needed) | B15: =B88 -> 0 | C15: =C88 -> 0
A16: Total Lease Payments (sum of all payment amounts * # of payments) | B16: =(B11*C11)+(B12*C12)+(B13*C13)+(B14*C14)+(B15) -> 0 | C16: =SUM(C11:C15) -> 0
D17: Response per
A18: Other Payment Considerations: | B18: Residual Value Guar | C18: Allow for Uncollectible Amt | D18: Data Input tab
A19: Residual Value Guarantee if Fixed-in-Substance (Section VI, #24a & b) | B19: 0 | D19: ='Data Input'!F141 -> 0
A20: Allowance for Uncollectible Leases (Section VI, #26)
A21: For example, could be calculated as a percentage of the total lease pmt rcvbl above | C21: 0 | D21: ='Data Input'!F151 -> 0
A22: Total Other Payment Considerations | B22: =SUM(B19:B21) -> 0
A23: Total Undiscounted Cash Flows (Total Payments + Other Considerations) | B23: =B16+B22 -> 0
C24: Important:
A25: Net Present Value (calculated after Macros below run) | B25: =SUM(G:G) -> 0 | C25: Do not insert/delete/move
C26: NPV must be cell B25
A27: Additions/Subtractions for Deferred Inflow of Resources (Section IV, #9-11) | B27: ='Data Input'!F75-'Data Input'!F76 -> 0 | C27: (macros depend on it)
A28: Deferred Inflow of Resources (calculated after Macros below run) | B28: =B25+B27 -> 0
A30: The Agency is not required to calculate the Present Value and/or enable Macros,
A31: but Steps 1 & 2 of the instructions below are REQUIRED to be completed.
A32: After completing Steps 1 & 2, if desired to calculate the Present Value, complete Steps 3 - 8:
A34: Note 1: First make sure your Excel settings are correct - | B34: See How to Enable Macros tab
A35: Note 2: Please do not Insert, Delete, or Move any cells, columns or rows as this could cause the Macros to fail.
A36: Note 3: The Blue Cells in columns B & C are for manual input, and the Present Value Table will need to be adjusted in column F.
A37: The Orange cells in columns B & C will automatically fill. Also, the Present Value and Amortization Tables will be generated with the
A38: Macro buttons. Please do not make changes to the orange cells or anywhere within the Tables (except column F).
A40: Step 1 - Fill out the "Fixed Lease Payment Receivable Schedule" section above (starting on row 10).
A41: a - If payments escalate over time, list beginning payment amount & # of payments to be received at that amount, then move to line #2
A42: and list the next payment amount & # of payments at that amount, etc.
A43: b - If an extension is deemed Reasonably Certain to be exercised, but the amount is listed as "negotiable", then use the lease
A44: payment amount just prior to the date of extension for those unknown amounts.
A45: c - If a future payment is variable based on an index or interest rate, then calculate those future payments using the current index or rate.
A46: d - If there is an Abated or Free Rent period (skipped payment) indicated in the lease contract, | C46: Desc of Lease Incentives
A47: indicate that with a $0 payment amount (col B) & the number of payments to be skipped (col C). | C47: ='Data Input'!F147 -> 0
A48: Make sure to put these skipped payments in the correct order chronologically. For example, if there
A49: is a Free Rent period for payment 13, then list the first 12 payments on the first line, then
A50: line #2 as $0 (col B) and 1 (col C), then line #3 as the continuing payments after the Free Rent period.
A51: e - If a Bonus payment from the lessor is included in the contract, subtract that amount from the payment closest to the proper
A52: chronological period (as described in d above). This may cause that payment amount to be negative.
A53: f - Use the blue box below to describe how payments change over time. For example - (a) Payment increases 5% every 10 yrs;
A54: (b) Appraisal to be completed every 25 years; or (c) Payment recalculated every 5 yrs based on CPI, etc.
A55: Also describe payment frequency if Less Often than Annually.
A59: g - If payments are Less Often than Annually,indicate this in the Payment Schedule above by listing first payment on the first row (1 in
A60: col C), then the 2nd row should show how many years to be skipped in col C ($0 in col B), then the 3rd row will show the 2nd payment.
A61: Repeat until all payments & all years are represented in the Payment Schdl (total in col C should tie to total yrs of lease term & cell B4).
A62: h - If there are not enough lines in the table above, use the table below to input the additional payment amounts, and the totals from
A63: the additional table will automatically be added to the Payment Schedule above.
A64: i - Verify that the total # of payments in cell B4 is the same as the sum of col C (cell C16).
A66: Additional Lease Payment Receivable Lines (if needed) | B66: Amount | C66: # of Payments
A67: Payment Amount #5 & # of Payments at this amount | B67: 0 | C67: 0
A68: Payment Amount #6 & # of Payments at this amount | B68: 0 | C68: 0
A69: Payment Amount #7 & # of Payments at this amount | B69: 0 | C69: 0
A70: Payment Amount #8 & # of Payments at this amount | B70: 0 | C70: 0
A71: Payment Amount #9 & # of Payments at this amount | B71: 0 | C71: 0
A72: Payment Amount #10 & # of Payments at this amount | B72: 0 | C72: 0
A73: Payment Amount #11 & # of Payments at this amount | B73: 0 | C73: 0
A74: Payment Amount #12 & # of Payments at this amount | B74: 0 | C74: 0
A75: Payment Amount #13 & # of Payments at this amount | B75: 0 | C75: 0
A76: Payment Amount #14 & # of Payments at this amount | B76: 0 | C76: 0
A77: Payment Amount #15 & # of Payments at this amount | B77: 0 | C77: 0
A78: Payment Amount #16 & # of Payments at this amount | B78: 0 | C78: 0
A79: Payment Amount #17 & # of Payments at this amount | B79: 0 | C79: 0
A80: Payment Amount #18 & # of Payments at this amount | B80: 0 | C80: 0
A81: Payment Amount #19 & # of Payments at this amount | B81: 0 | C81: 0
A82: Payment Amount #20 & # of Payments at this amount | B82: 0 | C82: 0
A83: Payment Amount #21 & # of Payments at this amount | B83: 0 | C83: 0
A84: Payment Amount #22 & # of Payments at this amount | B84: 0 | C84: 0
A85: Payment Amount #23 & # of Payments at this amount | B85: 0 | C85: 0
A86: Payment Amount #24 & # of Payments at this amount | B86: 0 | C86: 0
A87: Payment Amount #25 & # of Payments at this amount | B87: 0 | C87: 0
A88: Total Add'l Lease Payment Amts (will automatically be added to the Schedule above) | B88: =(B67*C67)+(B68*C68)+(B69*C69)+(B70*C70)+(B71*C71)+(B72*C72)+(B73*C73)+(B74*C74)+(B75*C75)+(B76*C76)+(B77*C77)+(B78*C78)+(B79*C79)+(B80*C80)+(B81*C81)+(B82*C82)+(B83*C83)+(B84*C84)+(B85*C85)+(B86*C86)+(B87*C87) -> 0 | C88: =SUM(C67:C87) -> 0
A90: Step 2 - Fill out the "Other Payment Considerations" section (starting on row 18) ONLY if instructed to do so on the Data Input tab
A91: (responses from Data Input tab are shown in col D).
A92: a - The Residual Value Guarantee line should only have an amount listed in Col B if it is Fixed In-Substance and not reliant on a future
A93: consideration (i.e. FMV of leased asset).
A94: b - The Allowance for Uncollectible Leases line should only have an amount listed in col C if economic circumstances, lessee
A95: creditworthiness, and historic information indicate a need for an allowance to be calculated. This amount is listed in col C because
A96: it will not be calculated as part of the Present Value of the Lease Receivable, but will instead reduce the Present Value after it is
A97: calculated as a contra-receivable.
A99: Steps 3 - 8 are OPTIONAL (calculation of Present Value and Amortization Tables)
A100: Step 3 - Click the Macro button below to Generate the first 2 columns of the Present Value (PV) Table.
A103: Step 4 - Using the Payment Receivable Schedule filled out in Steps 1 & 2, fill in the Payment Amounts into col F of the PV Table.
A104: a - If there are 12 payments for the 1st payment amount, and 6 payments for the 2nd payment amount, list the 1st amount in the
A105: first 12 rows of the Table, then the 2nd amount for the next 6 rows, and do the same for the remaining payment amounts listed
A106: in the Payment Schedule until all the payments are filled in on the Table.
A107: b - Make sure not to skip any Free Rent periods. If the Payment Schedule indicates the 13th payment is $0, then row 13 of the
A108: Table should be $0, same as the Payment Schedule.
A109: c - If there are any amounts listed for "Other Payment Considerations", add it to the final payment. For example, if the final
A110: payment is $20,000, and there is a Residual Value Guarantee listed for $5,000, then the final payment in the Table should be $25,000.
A111: d - Check to make sure that the sum of all the payments entered into col F of the Table is the same as the Total Undiscounted Cash
A112: Flows in cell B23.
A114: Step 5 - Click the Macro button below to Calculate Net Present Value and Generate the PV and Amortization Tables.
A118: Step 6 - Check data for accuracy:
A119: a - Check the date of the final payment in the Amortization Table and compare to Lease End Date in cell B8. Make sure the final
A120: payment date is reasonable in comparison to the Lease End Date (within same month if payments are Monthly, within the final
A121: quarter if Quarterly, etc).
A122: b - If payments change (there are amounts in Payment Amount #2 + rows), then check the dates the amounts change in the
A123: Amort Table (columns K & M) to make sure the payments change on the correct dates as per the Lease Contract.
A124: c - If 6a and 6b are BOTH correct, skip to Step 8 (Do NOT click the Start Over Macro Button).
A125: d - If 6a or 6b does not appear to be correct:
A126: i - Double-check the Instructions above (Steps 1 - 6), including the check for # of payments in 1i & check for Table payments in 4d.
A127: ii - Double-check cells B2-B8 by reviewing the Lease Contract. These cells automatically filled based on answers in the Data Input
A128: tab. Make any necessary corrections in the Data Input tab (NOT in cells B2-B8) - the corresponding question #s are referenced above.
A129: iii - Double-Check the Payment Schedule and Other Payment Considerations sections. Compare back to the Lease contract to
A130: verify, and correct as necessary.
A131: e - Once corrections have been made, click the Macro button below to Delete the PV & Amortization Tables.
A135: Step 7 - Repeat Steps 3-6 as needed until all checks (1i, 4d, 6a, 6b, and 6di-6diii) are correct.
A137: Step 8 - See Net Present Value calculated in cell B25 for the Lease Receivable and the Deferred Inflow of Resources in cell B28.
A138: Also, see Present Value Table in columns E-G,
A139: and Amortization Table in columns J-P.

Sheet Lease 5 - PV Calc
A1: Present Value Calculations tab - Lease 5 (column G) | B1: Contract # | C1: ='Data Input'!G35 -> 0
A2: Periodic Interest Rate (Section VII, #27-28 from Data Input tab) | B2: ='Data Input'!G171 -> 0
A3: Cash Flows at Beginning or End (Section V, #19) | B3: ='Data Input'!G117 -> 0 | C3: Important:
A4: Number of payments (Section V, #18) | B4: ='Data Input'!G114 -> 0 | C4: Do not insert/delete/move
A5: Frequency of payments (Section V, #17) | B5: ='Data Input'!G110 -> 0 | C5: cells B2:B8
A6: Date of first payment (Section V, #20) | B6: ='Data Input'!G120 -> 00:00:00 | C6: (macros depend on them)
A7: Lease Start Date (Section V, #12) | B7: ='Data Input'!G96 -> 00:00:00
A8: Lease End Date including Extensions (Section V, #15) | B8: ='Data Input'!G105 -> 1900-01-30
A10: Fixed Lease Payment Receivable Schedule (Section VI, #21 & see instructions below): | B10: Amount | C10: # of Payments
A11: Payment Amount #1 & # of Payments at this amount | B11: 0 | C11: 0
A12: Payment Amount #2 & # of Payments at this amount | B12: 0 | C12: 0
A13: Payment Amount #3 & # of Payments at this amount | B13: 0 | C13: 0
A14: Payment Amount #4 & # of Payments at this amount | B14: 0 | C14: 0
A15: Totals from add'l table below if needed) | B15: =B88 -> 0 | C15: =C88 -> 0
A16: Total Lease Payments (sum of all payment amounts * # of payments) | B16: =(B11*C11)+(B12*C12)+(B13*C13)+(B14*C14)+(B15) -> 0 | C16: =SUM(C11:C15) -> 0
D17: Response per
A18: Other Payment Considerations: | B18: Residual Value Guar | C18: Allow for Uncollectible Amt | D18: Data Input tab
A19: Residual Value Guarantee if Fixed-in-Substance (Section VI, #24a & b) | B19: 0 | D19: ='Data Input'!G141 -> 0
A20: Allowance for Uncollectible Leases (Section VI, #26)
A21: For example, could be calculated as a percentage of the total lease pmt rcvbl above | C21: 0 | D21: ='Data Input'!G151 -> 0
A22: Total Other Payment Considerations | B22: =SUM(B19:B21) -> 0
A23: Total Undiscounted Cash Flows (Total Payments + Other Considerations) | B23: =B16+B22 -> 0
C24: Important:
A25: Net Present Value (calculated after Macros below run) | B25: =SUM(G:G) -> 0 | C25: Do not insert/delete/move
C26: NPV must be cell B25
A27: Additions/Subtractions for Deferred Inflow of Resources (Section IV, #9-11) | B27: ='Data Input'!G75-'Data Input'!G76 -> 0 | C27: (macros depend on it)
A28: Deferred Inflow of Resources (calculated after Macros below run) | B28: =B25+B27 -> 0
A30: The Agency is not required to calculate the Present Value and/or enable Macros,
A31: but Steps 1 & 2 of the instructions below are REQUIRED to be completed.
A32: After completing Steps 1 & 2, if desired to calculate the Present Value, complete Steps 3 - 8:
A34: Note 1: First make sure your Excel settings are correct - | B34: See How to Enable Macros tab
A35: Note 2: Please do not Insert, Delete, or Move any cells, columns or rows as this could cause the Macros to fail.
A36: Note 3: The Blue Cells in columns B & C are for manual input, and the Present Value Table will need to be adjusted in column F.
A37: The Orange cells in columns B & C will automatically fill. Also, the Present Value and Amortization Tables will be generated with the
A38: Macro buttons. Please do not make changes to the orange cells or anywhere within the Tables (except column F).
A40: Step 1 - Fill out the "Fixed Lease Payment Receivable Schedule" section above (starting on row 10).
A41: a - If payments escalate over time, list beginning payment amount & # of payments to be received at that amount, then move to line #2
A42: and list the next payment amount & # of payments at that amount, etc.
A43: b - If an extension is deemed Reasonably Certain to be exercised, but the amount is listed as "negotiable", then use the lease
A44: payment amount just prior to the date of extension for those unknown amounts.
A45: c - If a future payment is variable based on an index or interest rate, then calculate those future payments using the current index or rate.
A46: d - If there is an Abated or Free Rent period (skipped payment) indicated in the lease contract, | C46: Desc of Lease Incentives
A47: indicate that with a $0 payment amount (col B) & the number of payments to be skipped (col C). | C47: ='Data Input'!G147 -> 0
A48: Make sure to put these skipped payments in the correct order chronologically. For example, if there
A49: is a Free Rent period for payment 13, then list the first 12 payments on the first line, then
A50: line #2 as $0 (col B) and 1 (col C), then line #3 as the continuing payments after the Free Rent period.
A51: e - If a Bonus payment from the lessor is included in the contract, subtract that amount from the payment closest to the proper
A52: chronological period (as described in d above). This may cause that payment amount to be negative.
A53: f - Use the blue box below to describe how payments change over time. For example - (a) Payment increases 5% every 10 yrs;
A54: (b) Appraisal to be completed every 25 years; or (c) Payment recalculated every 5 yrs based on CPI, etc.
A55: Also describe payment frequency if Less Often than Annually.
A59: g - If payments are Less Often than Annually,indicate this in the Payment Schedule above by listing first payment on the first row (1 in
A60: col C), then the 2nd row should show how many years to be skipped in col C ($0 in col B), then the 3rd row will show the 2nd payment.
A61: Repeat until all payments & all years are represented in the Payment Schdl (total in col C should tie to total yrs of lease term & cell B4).
A62: h - If there are not enough lines in the table above, use the table below to input the additional payment amounts, and the totals from
A63: the additional table will automatically be added to the Payment Schedule above.
A64: i - Verify that the total # of payments in cell B4 is the same as the sum of col C (cell C16).
A66: Additional Lease Payment Receivable Lines (if needed) | B66: Amount | C66: # of Payments
A67: Payment Amount #5 & # of Payments at this amount | B67: 0 | C67: 0
A68: Payment Amount #6 & # of Payments at this amount | B68: 0 | C68: 0
A69: Payment Amount #7 & # of Payments at this amount | B69: 0 | C69: 0
A70: Payment Amount #8 & # of Payments at this amount | B70: 0 | C70: 0
A71: Payment Amount #9 & # of Payments at this amount | B71: 0 | C71: 0
A72: Payment Amount #10 & # of Payments at this amount | B72: 0 | C72: 0
A73: Payment Amount #11 & # of Payments at this amount | B73: 0 | C73: 0
A74: Payment Amount #12 & # of Payments at this amount | B74: 0 | C74: 0
A75: Payment Amount #13 & # of Payments at this amount | B75: 0 | C75: 0
A76: Payment Amount #14 & # of Payments at this amount | B76: 0 | C76: 0
A77: Payment Amount #15 & # of Payments at this amount | B77: 0 | C77: 0
A78: Payment Amount #16 & # of Payments at this amount | B78: 0 | C78: 0
A79: Payment Amount #17 & # of Payments at this amount | B79: 0 | C79: 0
A80: Payment Amount #18 & # of Payments at this amount | B80: 0 | C80: 0
A81: Payment Amount #19 & # of Payments at this amount | B81: 0 | C81: 0
A82: Payment Amount #20 & # of Payments at this amount | B82: 0 | C82: 0
A83: Payment Amount #21 & # of Payments at this amount | B83: 0 | C83: 0
A84: Payment Amount #22 & # of Payments at this amount | B84: 0 | C84: 0
A85: Payment Amount #23 & # of Payments at this amount | B85: 0 | C85: 0
A86: Payment Amount #24 & # of Payments at this amount | B86: 0 | C86: 0
A87: Payment Amount #25 & # of Payments at this amount | B87: 0 | C87: 0
A88: Total Add'l Lease Payment Amts (will automatically be added to the Schedule above) | B88: =(B67*C67)+(B68*C68)+(B69*C69)+(B70*C70)+(B71*C71)+(B72*C72)+(B73*C73)+(B74*C74)+(B75*C75)+(B76*C76)+(B77*C77)+(B78*C78)+(B79*C79)+(B80*C80)+(B81*C81)+(B82*C82)+(B83*C83)+(B84*C84)+(B85*C85)+(B86*C86)+(B87*C87) -> 0 | C88: =SUM(C67:C87) -> 0
A90: Step 2 - Fill out the "Other Payment Considerations" section (starting on row 18) ONLY if instructed to do so on the Data Input tab
A91: (responses from Data Input tab are shown in col D).
A92: a - The Residual Value Guarantee line should only have an amount listed in Col B if it is Fixed In-Substance and not reliant on a future
A93: consideration (i.e. FMV of leased asset).
A94: b - The Allowance for Uncollectible Leases line should only have an amount listed in col C if economic circumstances, lessee
A95: creditworthiness, and historic information indicate a need for an allowance to be calculated. This amount is listed in col C because
A96: it will not be calculated as part of the Present Value of the Lease Receivable, but will instead reduce the Present Value after it is
A97: calculated as a contra-receivable.
A99: Steps 3 - 8 are OPTIONAL (calculation of Present Value and Amortization Tables)
A100: Step 3 - Click the Macro button below to Generate the first 2 columns of the Present Value (PV) Table.
A103: Step 4 - Using the Payment Receivable Schedule filled out in Steps 1 & 2, fill in the Payment Amounts into col F of the PV Table.
A104: a - If there are 12 payments for the 1st payment amount, and 6 payments for the 2nd payment amount, list the 1st amount in the
A105: first 12 rows of the Table, then the 2nd amount for the next 6 rows, and do the same for the remaining payment amounts listed
A106: in the Payment Schedule until all the payments are filled in on the Table.
A107: b - Make sure not to skip any Free Rent periods. If the Payment Schedule indicates the 13th payment is $0, then row 13 of the
A108: Table should be $0, same as the Payment Schedule.
A109: c - If there are any amounts listed for "Other Payment Considerations", add it to the final payment. For example, if the final
A110: payment is $20,000, and there is a Residual Value Guarantee listed for $5,000, then the final payment in the Table should be $25,000.
A111: d - Check to make sure that the sum of all the payments entered into col F of the Table is the same as the Total Undiscounted Cash
A112: Flows in cell B23.
A114: Step 5 - Click the Macro button below to Calculate Net Present Value and Generate the PV and Amortization Tables.
A118: Step 6 - Check data for accuracy:
A119: a - Check the date of the final payment in the Amortization Table and compare to Lease End Date in cell B8. Make sure the final
A120: payment date is reasonable in comparison to the Lease End Date (within same month if payments are Monthly, within the final
A121: quarter if Quarterly, etc).
A122: b - If payments change (there are amounts in Payment Amount #2 + rows), then check the dates the amounts change in the
A123: Amort Table (columns K & M) to make sure the payments change on the correct dates as per the Lease Contract.
A124: c - If 6a and 6b are BOTH correct, skip to Step 8 (Do NOT click the Start Over Macro Button).
A125: d - If 6a or 6b does not appear to be correct:
A126: i - Double-check the Instructions above (Steps 1 - 6), including the check for # of payments in 1i & check for Table payments in 4d.
A127: ii - Double-check cells B2-B8 by reviewing the Lease Contract. These cells automatically filled based on answers in the Data Input
A128: tab. Make any necessary corrections in the Data Input tab (NOT in cells B2-B8) - the corresponding question #s are referenced above.
A129: iii - Double-Check the Payment Schedule and Other Payment Considerations sections. Compare back to the Lease contract to
A130: verify, and correct as necessary.
A131: e - Once corrections have been made, click the Macro button below to Delete the PV & Amortization Tables.
A135: Step 7 - Repeat Steps 3-6 as needed until all checks (1i, 4d, 6a, 6b, and 6di-6diii) are correct.
A137: Step 8 - See Net Present Value calculated in cell B25 for the Lease Receivable and the Deferred Inflow of Resources in cell B28.
A138: Also, see Present Value Table in columns E-G,
A139: and Amortization Table in columns J-P.

Sheet Lease 6 - PV Calc
A1: Present Value Calculations tab - Lease 6 (column H) | B1: Contract # | C1: ='Data Input'!H35 -> 0
A2: Periodic Interest Rate (Section VII, #27-28 from Data Input tab) | B2: ='Data Input'!H171 -> 0
A3: Cash Flows at Beginning or End (Section V, #19) | B3: ='Data Input'!H117 -> 0 | C3: Important:
A4: Number of payments (Section V, #18) | B4: ='Data Input'!H114 -> 0 | C4: Do not insert/delete/move
A5: Frequency of payments (Section V, #17) | B5: ='Data Input'!H110 -> 0 | C5: cells B2:B8
A6: Date of first payment (Section V, #20) | B6: ='Data Input'!H120 -> 00:00:00 | C6: (macros depend on them)
A7: Lease Start Date (Section V, #12) | B7: ='Data Input'!H96 -> 00:00:00
A8: Lease End Date including Extensions (Section V, #15) | B8: ='Data Input'!H105 -> 1900-01-30
A10: Fixed Lease Payment Receivable Schedule (Section VI, #21 & see instructions below): | B10: Amount | C10: # of Payments
A11: Payment Amount #1 & # of Payments at this amount | B11: 0 | C11: 0
A12: Payment Amount #2 & # of Payments at this amount | B12: 0 | C12: 0
A13: Payment Amount #3 & # of Payments at this amount | B13: 0 | C13: 0
A14: Payment Amount #4 & # of Payments at this amount | B14: 0 | C14: 0
A15: Totals from add'l table below if needed) | B15: =B88 -> 0 | C15: =C88 -> 0
A16: Total Lease Payments (sum of all payment amounts * # of payments) | B16: =(B11*C11)+(B12*C12)+(B13*C13)+(B14*C14)+(B15) -> 0 | C16: =SUM(C11:C15) -> 0
D17: Response per
A18: Other Payment Considerations: | B18: Residual Value Guar | C18: Allow for Uncollectible Amt | D18: Data Input tab
A19: Residual Value Guarantee if Fixed-in-Substance (Section VI, #24a & b) | B19: 0 | D19: ='Data Input'!H141 -> 0
A20: Allowance for Uncollectible Leases (Section VI, #26)
A21: For example, could be calculated as a percentage of the total lease pmt rcvbl above | C21: 0 | D21: ='Data Input'!H151 -> 0
A22: Total Other Payment Considerations | B22: =SUM(B19:B21) -> 0
A23: Total Undiscounted Cash Flows (Total Payments + Other Considerations) | B23: =B16+B22 -> 0
C24: Important:
A25: Net Present Value (calculated after Macros below run) | B25: =SUM(G:G) -> 0 | C25: Do not insert/delete/move
C26: NPV must be cell B25
A27: Additions/Subtractions for Deferred Inflow of Resources (Section IV, #9-11) | B27: ='Data Input'!H75-'Data Input'!H76 -> 0 | C27: (macros depend on it)
A28: Deferred Inflow of Resources (calculated after Macros below run) | B28: =B25+B27 -> 0
A30: The Agency is not required to calculate the Present Value and/or enable Macros,
A31: but Steps 1 & 2 of the instructions below are REQUIRED to be completed.
A32: After completing Steps 1 & 2, if desired to calculate the Present Value, complete Steps 3 - 8:
A34: Note 1: First make sure your Excel settings are correct - | B34: See How to Enable Macros tab
A35: Note 2: Please do not Insert, Delete, or Move any cells, columns or rows as this could cause the Macros to fail.
A36: Note 3: The Blue Cells in columns B & C are for manual input, and the Present Value Table will need to be adjusted in column F.
A37: The Orange cells in columns B & C will automatically fill. Also, the Present Value and Amortization Tables will be generated with the
A38: Macro buttons. Please do not make changes to the orange cells or anywhere within the Tables (except column F).
A40: Step 1 - Fill out the "Fixed Lease Payment Receivable Schedule" section above (starting on row 10).
A41: a - If payments escalate over time, list beginning payment amount & # of payments to be received at that amount, then move to line #2
A42: and list the next payment amount & # of payments at that amount, etc.
A43: b - If an extension is deemed Reasonably Certain to be exercised, but the amount is listed as "negotiable", then use the lease
A44: payment amount just prior to the date of extension for those unknown amounts.
A45: c - If a future payment is variable based on an index or interest rate, then calculate those future payments using the current index or rate.
A46: d - If there is an Abated or Free Rent period (skipped payment) indicated in the lease contract, | C46: Desc of Lease Incentives
A47: indicate that with a $0 payment amount (col B) & the number of payments to be skipped (col C). | C47: ='Data Input'!H147 -> 0
A48: Make sure to put these skipped payments in the correct order chronologically. For example, if there
A49: is a Free Rent period for payment 13, then list the first 12 payments on the first line, then
A50: line #2 as $0 (col B) and 1 (col C), then line #3 as the continuing payments after the Free Rent period.
A51: e - If a Bonus payment from the lessor is included in the contract, subtract that amount from the payment closest to the proper
A52: chronological period (as described in d above). This may cause that payment amount to be negative.
A53: f - Use the blue box below to describe how payments change over time. For example - (a) Payment increases 5% every 10 yrs;
A54: (b) Appraisal to be completed every 25 years; or (c) Payment recalculated every 5 yrs based on CPI, etc.
A55: Also describe payment frequency if Less Often than Annually.
A59: g - If payments are Less Often than Annually,indicate this in the Payment Schedule above by listing first payment on the first row (1 in
A60: col C), then the 2nd row should show how many years to be skipped in col C ($0 in col B), then the 3rd row will show the 2nd payment.
A61: Repeat until all payments & all years are represented in the Payment Schdl (total in col C should tie to total yrs of lease term & cell B4).
A62: h - If there are not enough lines in the table above, use the table below to input the additional payment amounts, and the totals from
A63: the additional table will automatically be added to the Payment Schedule above.
A64: i - Verify that the total # of payments in cell B4 is the same as the sum of col C (cell C16).
A66: Additional Lease Payment Receivable Lines (if needed) | B66: Amount | C66: # of Payments
A67: Payment Amount #5 & # of Payments at this amount | B67: 0 | C67: 0
A68: Payment Amount #6 & # of Payments at this amount | B68: 0 | C68: 0
A69: Payment Amount #7 & # of Payments at this amount | B69: 0 | C69: 0
A70: Payment Amount #8 & # of Payments at this amount | B70: 0 | C70: 0
A71: Payment Amount #9 & # of Payments at this amount | B71: 0 | C71: 0
A72: Payment Amount #10 & # of Payments at this amount | B72: 0 | C72: 0
A73: Payment Amount #11 & # of Payments at this amount | B73: 0 | C73: 0
A74: Payment Amount #12 & # of Payments at this amount | B74: 0 | C74: 0
A75: Payment Amount #13 & # of Payments at this amount | B75: 0 | C75: 0
A76: Payment Amount #14 & # of Payments at this amount | B76: 0 | C76: 0
A77: Payment Amount #15 & # of Payments at this amount | B77: 0 | C77: 0
A78: Payment Amount #16 & # of Payments at this amount | B78: 0 | C78: 0
A79: Payment Amount #17 & # of Payments at this amount | B79: 0 | C79: 0
A80: Payment Amount #18 & # of Payments at this amount | B80: 0 | C80: 0
A81: Payment Amount #19 & # of Payments at this amount | B81: 0 | C81: 0
A82: Payment Amount #20 & # of Payments at this amount | B82: 0 | C82: 0
A83: Payment Amount #21 & # of Payments at this amount | B83: 0 | C83: 0
A84: Payment Amount #22 & # of Payments at this amount | B84: 0 | C84: 0
A85: Payment Amount #23 & # of Payments at this amount | B85: 0 | C85: 0
A86: Payment Amount #24 & # of Payments at this amount | B86: 0 | C86: 0
A87: Payment Amount #25 & # of Payments at this amount | B87: 0 | C87: 0
A88: Total Add'l Lease Payment Amts (will automatically be added to the Schedule above) | B88: =(B67*C67)+(B68*C68)+(B69*C69)+(B70*C70)+(B71*C71)+(B72*C72)+(B73*C73)+(B74*C74)+(B75*C75)+(B76*C76)+(B77*C77)+(B78*C78)+(B79*C79)+(B80*C80)+(B81*C81)+(B82*C82)+(B83*C83)+(B84*C84)+(B85*C85)+(B86*C86)+(B87*C87) -> 0 | C88: =SUM(C67:C87) -> 0
A90: Step 2 - Fill out the "Other Payment Considerations" section (starting on row 18) ONLY if instructed to do so on the Data Input tab
A91: (responses from Data Input tab are shown in col D).
A92: a - The Residual Value Guarantee line should only have an amount listed in Col B if it is Fixed In-Substance and not reliant on a future
A93: consideration (i.e. FMV of leased asset).
A94: b - The Allowance for Uncollectible Leases line should only have an amount listed in col C if economic circumstances, lessee
A95: creditworthiness, and historic information indicate a need for an allowance to be calculated. This amount is listed in col C because
A96: it will not be calculated as part of the Present Value of the Lease Receivable, but will instead reduce the Present Value after it is
A97: calculated as a contra-receivable.
A99: Steps 3 - 8 are OPTIONAL (calculation of Present Value and Amortization Tables)
A100: Step 3 - Click the Macro button below to Generate the first 2 columns of the Present Value (PV) Table.
A103: Step 4 - Using the Payment Receivable Schedule filled out in Steps 1 & 2, fill in the Payment Amounts into col F of the PV Table.
A104: a - If there are 12 payments for the 1st payment amount, and 6 payments for the 2nd payment amount, list the 1st amount in the
A105: first 12 rows of the Table, then the 2nd amount for the next 6 rows, and do the same for the remaining payment amounts listed
A106: in the Payment Schedule until all the payments are filled in on the Table.
A107: b - Make sure not to skip any Free Rent periods. If the Payment Schedule indicates the 13th payment is $0, then row 13 of the
A108: Table should be $0, same as the Payment Schedule.
A109: c - If there are any amounts listed for "Other Payment Considerations", add it to the final payment. For example, if the final
A110: payment is $20,000, and there is a Residual Value Guarantee listed for $5,000, then the final payment in the Table should be $25,000.
A111: d - Check to make sure that the sum of all the payments entered into col F of the Table is the same as the Total Undiscounted Cash
A112: Flows in cell B23.
A114: Step 5 - Click the Macro button below to Calculate Net Present Value and Generate the PV and Amortization Tables.
A118: Step 6 - Check data for accuracy:
A119: a - Check the date of the final payment in the Amortization Table and compare to Lease End Date in cell B8. Make sure the final
A120: payment date is reasonable in comparison to the Lease End Date (within same month if payments are Monthly, within the final
A121: quarter if Quarterly, etc).
A122: b - If payments change (there are amounts in Payment Amount #2 + rows), then check the dates the amounts change in the
A123: Amort Table (columns K & M) to make sure the payments change on the correct dates as per the Lease Contract.
A124: c - If 6a and 6b are BOTH correct, skip to Step 8 (Do NOT click the Start Over Macro Button).
A125: d - If 6a or 6b does not appear to be correct:
A126: i - Double-check the Instructions above (Steps 1 - 6), including the check for # of payments in 1i & check for Table payments in 4d.
A127: ii - Double-check cells B2-B8 by reviewing the Lease Contract. These cells automatically filled based on answers in the Data Input
A128: tab. Make any necessary corrections in the Data Input tab (NOT in cells B2-B8) - the corresponding question #s are referenced above.
A129: iii - Double-Check the Payment Schedule and Other Payment Considerations sections. Compare back to the Lease contract to
A130: verify, and correct as necessary.
A131: e - Once corrections have been made, click the Macro button below to Delete the PV & Amortization Tables.
A135: Step 7 - Repeat Steps 3-6 as needed until all checks (1i, 4d, 6a, 6b, and 6di-6diii) are correct.
A137: Step 8 - See Net Present Value calculated in cell B25 for the Lease Receivable and the Deferred Inflow of Resources in cell B28.
A138: Also, see Present Value Table in columns E-G,
A139: and Amortization Table in columns J-P.

Sheet Lease 7 - PV Calc
A1: Present Value Calculations tab - Lease 7 (column I) | B1: Contract # | C1: ='Data Input'!I35 -> 0
A2: Periodic Interest Rate (Section VII, #27-28 from Data Input tab) | B2: ='Data Input'!I171 -> 0
A3: Cash Flows at Beginning or End (Section V, #19) | B3: ='Data Input'!I117 -> 0 | C3: Important:
A4: Number of payments (Section V, #18) | B4: ='Data Input'!I114 -> 0 | C4: Do not insert/delete/move
A5: Frequency of payments (Section V, #17) | B5: ='Data Input'!I110 -> 0 | C5: cells B2:B8
A6: Date of first payment (Section V, #20) | B6: ='Data Input'!I120 -> 00:00:00 | C6: (macros depend on them)
A7: Lease Start Date (Section V, #12) | B7: ='Data Input'!I96 -> 00:00:00
A8: Lease End Date including Extensions (Section V, #15) | B8: ='Data Input'!I105 -> 1900-01-30
A10: Fixed Lease Payment Receivable Schedule (Section VI, #21 & see instructions below): | B10: Amount | C10: # of Payments
A11: Payment Amount #1 & # of Payments at this amount | B11: 0 | C11: 0
A12: Payment Amount #2 & # of Payments at this amount | B12: 0 | C12: 0
A13: Payment Amount #3 & # of Payments at this amount | B13: 0 | C13: 0
A14: Payment Amount #4 & # of Payments at this amount | B14: 0 | C14: 0
A15: Totals from add'l table below if needed) | B15: =B88 -> 0 | C15: =C88 -> 0
A16: Total Lease Payments (sum of all payment amounts * # of payments) | B16: =(B11*C11)+(B12*C12)+(B13*C13)+(B14*C14)+(B15) -> 0 | C16: =SUM(C11:C15) -> 0
D17: Response per
A18: Other Payment Considerations: | B18: Residual Value Guar | C18: Allow for Uncollectible Amt | D18: Data Input tab
A19: Residual Value Guarantee if Fixed-in-Substance (Section VI, #24a & b) | B19: 0 | D19: ='Data Input'!I141 -> 0
A20: Allowance for Uncollectible Leases (Section VI, #26)
A21: For example, could be calculated as a percentage of the total lease pmt rcvbl above | C21: 0 | D21: ='Data Input'!I151 -> 0
A22: Total Other Payment Considerations | B22: =SUM(B19:B21) -> 0
A23: Total Undiscounted Cash Flows (Total Payments + Other Considerations) | B23: =B16+B22 -> 0
C24: Important:
A25: Net Present Value (calculated after Macros below run) | B25: =SUM(G:G) -> 0 | C25: Do not insert/delete/move
C26: NPV must be cell B25
A27: Additions/Subtractions for Deferred Inflow of Resources (Section IV, #9-11) | B27: ='Data Input'!I75-'Data Input'!I76 -> 0 | C27: (macros depend on it)
A28: Deferred Inflow of Resources (calculated after Macros below run) | B28: =B25+B27 -> 0
A30: The Agency is not required to calculate the Present Value and/or enable Macros,
A31: but Steps 1 & 2 of the instructions below are REQUIRED to be completed.
A32: After completing Steps 1 & 2, if desired to calculate the Present Value, complete Steps 3 - 8:
A34: Note 1: First make sure your Excel settings are correct - | B34: See How to Enable Macros tab
A35: Note 2: Please do not Insert, Delete, or Move any cells, columns or rows as this could cause the Macros to fail.
A36: Note 3: The Blue Cells in columns B & C are for manual input, and the Present Value Table will need to be adjusted in column F.
A37: The Orange cells in columns B & C will automatically fill. Also, the Present Value and Amortization Tables will be generated with the
A38: Macro buttons. Please do not make changes to the orange cells or anywhere within the Tables (except column F).
A40: Step 1 - Fill out the "Fixed Lease Payment Receivable Schedule" section above (starting on row 10).
A41: a - If payments escalate over time, list beginning payment amount & # of payments to be received at that amount, then move to line #2
A42: and list the next payment amount & # of payments at that amount, etc.
A43: b - If an extension is deemed Reasonably Certain to be exercised, but the amount is listed as "negotiable", then use the lease
A44: payment amount just prior to the date of extension for those unknown amounts.
A45: c - If a future payment is variable based on an index or interest rate, then calculate those future payments using the current index or rate.
A46: d - If there is an Abated or Free Rent period (skipped payment) indicated in the lease contract, | C46: Desc of Lease Incentives
A47: indicate that with a $0 payment amount (col B) & the number of payments to be skipped (col C). | C47: ='Data Input'!I147 -> 0
A48: Make sure to put these skipped payments in the correct order chronologically. For example, if there
A49: is a Free Rent period for payment 13, then list the first 12 payments on the first line, then
A50: line #2 as $0 (col B) and 1 (col C), then line #3 as the continuing payments after the Free Rent period.
A51: e - If a Bonus payment from the lessor is included in the contract, subtract that amount from the payment closest to the proper
A52: chronological period (as described in d above). This may cause that payment amount to be negative.
A53: f - Use the blue box below to describe how payments change over time. For example - (a) Payment increases 5% every 10 yrs;
A54: (b) Appraisal to be completed every 25 years; or (c) Payment recalculated every 5 yrs based on CPI, etc.
A55: Also describe payment frequency if Less Often than Annually.
A59: g - If payments are Less Often than Annually,indicate this in the Payment Schedule above by listing first payment on the first row (1 in
A60: col C), then the 2nd row should show how many years to be skipped in col C ($0 in col B), then the 3rd row will show the 2nd payment.
A61: Repeat until all payments & all years are represented in the Payment Schdl (total in col C should tie to total yrs of lease term & cell B4).
A62: h - If there are not enough lines in the table above, use the table below to input the additional payment amounts, and the totals from
A63: the additional table will automatically be added to the Payment Schedule above.
A64: i - Verify that the total # of payments in cell B4 is the same as the sum of col C (cell C16).
A66: Additional Lease Payment Receivable Lines (if needed) | B66: Amount | C66: # of Payments
A67: Payment Amount #5 & # of Payments at this amount | B67: 0 | C67: 0
A68: Payment Amount #6 & # of Payments at this amount | B68: 0 | C68: 0
A69: Payment Amount #7 & # of Payments at this amount | B69: 0 | C69: 0
A70: Payment Amount #8 & # of Payments at this amount | B70: 0 | C70: 0
A71: Payment Amount #9 & # of Payments at this amount | B71: 0 | C71: 0
A72: Payment Amount #10 & # of Payments at this amount | B72: 0 | C72: 0
A73: Payment Amount #11 & # of Payments at this amount | B73: 0 | C73: 0
A74: Payment Amount #12 & # of Payments at this amount | B74: 0 | C74: 0
A75: Payment Amount #13 & # of Payments at this amount | B75: 0 | C75: 0
A76: Payment Amount #14 & # of Payments at this amount | B76: 0 | C76: 0
A77: Payment Amount #15 & # of Payments at this amount | B77: 0 | C77: 0
A78: Payment Amount #16 & # of Payments at this amount | B78: 0 | C78: 0
A79: Payment Amount #17 & # of Payments at this amount | B79: 0 | C79: 0
A80: Payment Amount #18 & # of Payments at this amount | B80: 0 | C80: 0
A81: Payment Amount #19 & # of Payments at this amount | B81: 0 | C81: 0
A82: Payment Amount #20 & # of Payments at this amount | B82: 0 | C82: 0
A83: Payment Amount #21 & # of Payments at this amount | B83: 0 | C83: 0
A84: Payment Amount #22 & # of Payments at this amount | B84: 0 | C84: 0
A85: Payment Amount #23 & # of Payments at this amount | B85: 0 | C85: 0
A86: Payment Amount #24 & # of Payments at this amount | B86: 0 | C86: 0
A87: Payment Amount #25 & # of Payments at this amount | B87: 0 | C87: 0
A88: Total Add'l Lease Payment Amts (will automatically be added to the Schedule above) | B88: =(B67*C67)+(B68*C68)+(B69*C69)+(B70*C70)+(B71*C71)+(B72*C72)+(B73*C73)+(B74*C74)+(B75*C75)+(B76*C76)+(B77*C77)+(B78*C78)+(B79*C79)+(B80*C80)+(B81*C81)+(B82*C82)+(B83*C83)+(B84*C84)+(B85*C85)+(B86*C86)+(B87*C87) -> 0 | C88: =SUM(C67:C87) -> 0
A90: Step 2 - Fill out the "Other Payment Considerations" section (starting on row 18) ONLY if instructed to do so on the Data Input tab
A91: (responses from Data Input tab are shown in col D).
A92: a - The Residual Value Guarantee line should only have an amount listed in Col B if it is Fixed In-Substance and not reliant on a future
A93: consideration (i.e. FMV of leased asset).
A94: b - The Allowance for Uncollectible Leases line should only have an amount listed in col C if economic circumstances, lessee
A95: creditworthiness, and historic information indicate a need for an allowance to be calculated. This amount is listed in col C because
A96: it will not be calculated as part of the Present Value of the Lease Receivable, but will instead reduce the Present Value after it is
A97: calculated as a contra-receivable.
A99: Steps 3 - 8 are OPTIONAL (calculation of Present Value and Amortization Tables)
A100: Step 3 - Click the Macro button below to Generate the first 2 columns of the Present Value (PV) Table.
A103: Step 4 - Using the Payment Receivable Schedule filled out in Steps 1 & 2, fill in the Payment Amounts into col F of the PV Table.
A104: a - If there are 12 payments for the 1st payment amount, and 6 payments for the 2nd payment amount, list the 1st amount in the
A105: first 12 rows of the Table, then the 2nd amount for the next 6 rows, and do the same for the remaining payment amounts listed
A106: in the Payment Schedule until all the payments are filled in on the Table.
A107: b - Make sure not to skip any Free Rent periods. If the Payment Schedule indicates the 13th payment is $0, then row 13 of the
A108: Table should be $0, same as the Payment Schedule.
A109: c - If there are any amounts listed for "Other Payment Considerations", add it to the final payment. For example, if the final
A110: payment is $20,000, and there is a Residual Value Guarantee listed for $5,000, then the final payment in the Table should be $25,000.
A111: d - Check to make sure that the sum of all the payments entered into col F of the Table is the same as the Total Undiscounted Cash
A112: Flows in cell B23.
A114: Step 5 - Click the Macro button below to Calculate Net Present Value and Generate the PV and Amortization Tables.
A118: Step 6 - Check data for accuracy:
A119: a - Check the date of the final payment in the Amortization Table and compare to Lease End Date in cell B8. Make sure the final
A120: payment date is reasonable in comparison to the Lease End Date (within same month if payments are Monthly, within the final
A121: quarter if Quarterly, etc).
A122: b - If payments change (there are amounts in Payment Amount #2 + rows), then check the dates the amounts change in the
A123: Amort Table (columns K & M) to make sure the payments change on the correct dates as per the Lease Contract.
A124: c - If 6a and 6b are BOTH correct, skip to Step 8 (Do NOT click the Start Over Macro Button).
A125: d - If 6a or 6b does not appear to be correct:
A126: i - Double-check the Instructions above (Steps 1 - 6), including the check for # of payments in 1i & check for Table payments in 4d.
A127: ii - Double-check cells B2-B8 by reviewing the Lease Contract. These cells automatically filled based on answers in the Data Input
A128: tab. Make any necessary corrections in the Data Input tab (NOT in cells B2-B8) - the corresponding question #s are referenced above.
A129: iii - Double-Check the Payment Schedule and Other Payment Considerations sections. Compare back to the Lease contract to
A130: verify, and correct as necessary.
A131: e - Once corrections have been made, click the Macro button below to Delete the PV & Amortization Tables.
A135: Step 7 - Repeat Steps 3-6 as needed until all checks (1i, 4d, 6a, 6b, and 6di-6diii) are correct.
A137: Step 8 - See Net Present Value calculated in cell B25 for the Lease Receivable and the Deferred Inflow of Resources in cell B28.
A138: Also, see Present Value Table in columns E-G,
A139: and Amortization Table in columns J-P.

Sheet Lease 8 - PV Calc
A1: Present Value Calculations tab - Lease 8 (column J) | B1: Contract # | C1: ='Data Input'!J35 -> 0
A2: Periodic Interest Rate (Section VII, #27-28 from Data Input tab) | B2: ='Data Input'!J171 -> 0
A3: Cash Flows at Beginning or End (Section V, #19) | B3: ='Data Input'!J117 -> 0 | C3: Important:
A4: Number of payments (Section V, #18) | B4: ='Data Input'!J114 -> 0 | C4: Do not insert/delete/move
A5: Frequency of payments (Section V, #17) | B5: ='Data Input'!J110 -> 0 | C5: cells B2:B8
A6: Date of first payment (Section V, #20) | B6: ='Data Input'!J120 -> 00:00:00 | C6: (macros depend on them)
A7: Lease Start Date (Section V, #12) | B7: ='Data Input'!J96 -> 00:00:00
A8: Lease End Date including Extensions (Section V, #15) | B8: ='Data Input'!J105 -> 1900-01-30
A10: Fixed Lease Payment Receivable Schedule (Section VI, #21 & see instructions below): | B10: Amount | C10: # of Payments
A11: Payment Amount #1 & # of Payments at this amount | B11: 0 | C11: 0
A12: Payment Amount #2 & # of Payments at this amount | B12: 0 | C12: 0
A13: Payment Amount #3 & # of Payments at this amount | B13: 0 | C13: 0
A14: Payment Amount #4 & # of Payments at this amount | B14: 0 | C14: 0
A15: Totals from add'l table below if needed) | B15: =B88 -> 0 | C15: =C88 -> 0
A16: Total Lease Payments (sum of all payment amounts * # of payments) | B16: =(B11*C11)+(B12*C12)+(B13*C13)+(B14*C14)+(B15) -> 0 | C16: =SUM(C11:C15) -> 0
D17: Response per
A18: Other Payment Considerations: | B18: Residual Value Guar | C18: Allow for Uncollectible Amt | D18: Data Input tab
A19: Residual Value Guarantee if Fixed-in-Substance (Section VI, #24a & b) | B19: 0 | D19: ='Data Input'!J141 -> 0
A20: Allowance for Uncollectible Leases (Section VI, #26)
A21: For example, could be calculated as a percentage of the total lease pmt rcvbl above | C21: 0 | D21: ='Data Input'!J151 -> 0
A22: Total Other Payment Considerations | B22: =SUM(B19:B21) -> 0
A23: Total Undiscounted Cash Flows (Total Payments + Other Considerations) | B23: =B16+B22 -> 0
C24: Important:
A25: Net Present Value (calculated after Macros below run) | B25: =SUM(G:G) -> 0 | C25: Do not insert/delete/move
C26: NPV must be cell B25
A27: Additions/Subtractions for Deferred Inflow of Resources (Section IV, #9-11) | B27: ='Data Input'!J75-'Data Input'!J76 -> 0 | C27: (macros depend on it)
A28: Deferred Inflow of Resources (calculated after Macros below run) | B28: =B25+B27 -> 0
A30: The Agency is not required to calculate the Present Value and/or enable Macros,
A31: but Steps 1 & 2 of the instructions below are REQUIRED to be completed.
A32: After completing Steps 1 & 2, if desired to calculate the Present Value, complete Steps 3 - 8:
A34: Note 1: First make sure your Excel settings are correct - | B34: See How to Enable Macros tab
A35: Note 2: Please do not Insert, Delete, or Move any cells, columns or rows as this could cause the Macros to fail.
A36: Note 3: The Blue Cells in columns B & C are for manual input, and the Present Value Table will need to be adjusted in column F.
A37: The Orange cells in columns B & C will automatically fill. Also, the Present Value and Amortization Tables will be generated with the
A38: Macro buttons. Please do not make changes to the orange cells or anywhere within the Tables (except column F).
A40: Step 1 - Fill out the "Fixed Lease Payment Receivable Schedule" section above (starting on row 10).
A41: a - If payments escalate over time, list beginning payment amount & # of payments to be received at that amount, then move to line #2
A42: and list the next payment amount & # of payments at that amount, etc.
A43: b - If an extension is deemed Reasonably Certain to be exercised, but the amount is listed as "negotiable", then use the lease
A44: payment amount just prior to the date of extension for those unknown amounts.
A45: c - If a future payment is variable based on an index or interest rate, then calculate those future payments using the current index or rate.
A46: d - If there is an Abated or Free Rent period (skipped payment) indicated in the lease contract, | C46: Desc of Lease Incentives
A47: indicate that with a $0 payment amount (col B) & the number of payments to be skipped (col C). | C47: ='Data Input'!J147 -> 0
A48: Make sure to put these skipped payments in the correct order chronologically. For example, if there
A49: is a Free Rent period for payment 13, then list the first 12 payments on the first line, then
A50: line #2 as $0 (col B) and 1 (col C), then line #3 as the continuing payments after the Free Rent period.
A51: e - If a Bonus payment from the lessor is included in the contract, subtract that amount from the payment closest to the proper
A52: chronological period (as described in d above). This may cause that payment amount to be negative.
A53: f - Use the blue box below to describe how payments change over time. For example - (a) Payment increases 5% every 10 yrs;
A54: (b) Appraisal to be completed every 25 years; or (c) Payment recalculated every 5 yrs based on CPI, etc.
A55: Also describe payment frequency if Less Often than Annually.
A59: g - If payments are Less Often than Annually,indicate this in the Payment Schedule above by listing first payment on the first row (1 in
A60: col C), then the 2nd row should show how many years to be skipped in col C ($0 in col B), then the 3rd row will show the 2nd payment.
A61: Repeat until all payments & all years are represented in the Payment Schdl (total in col C should tie to total yrs of lease term & cell B4).
A62: h - If there are not enough lines in the table above, use the table below to input the additional payment amounts, and the totals from
A63: the additional table will automatically be added to the Payment Schedule above.
A64: i - Verify that the total # of payments in cell B4 is the same as the sum of col C (cell C16).
A66: Additional Lease Payment Receivable Lines (if needed) | B66: Amount | C66: # of Payments
A67: Payment Amount #5 & # of Payments at this amount | B67: 0 | C67: 0
A68: Payment Amount #6 & # of Payments at this amount | B68: 0 | C68: 0
A69: Payment Amount #7 & # of Payments at this amount | B69: 0 | C69: 0
A70: Payment Amount #8 & # of Payments at this amount | B70: 0 | C70: 0
A71: Payment Amount #9 & # of Payments at this amount | B71: 0 | C71: 0
A72: Payment Amount #10 & # of Payments at this amount | B72: 0 | C72: 0
A73: Payment Amount #11 & # of Payments at this amount | B73: 0 | C73: 0
A74: Payment Amount #12 & # of Payments at this amount | B74: 0 | C74: 0
A75: Payment Amount #13 & # of Payments at this amount | B75: 0 | C75: 0
A76: Payment Amount #14 & # of Payments at this amount | B76: 0 | C76: 0
A77: Payment Amount #15 & # of Payments at this amount | B77: 0 | C77: 0
A78: Payment Amount #16 & # of Payments at this amount | B78: 0 | C78: 0
A79: Payment Amount #17 & # of Payments at this amount | B79: 0 | C79: 0
A80: Payment Amount #18 & # of Payments at this amount | B80: 0 | C80: 0
A81: Payment Amount #19 & # of Payments at this amount | B81: 0 | C81: 0
A82: Payment Amount #20 & # of Payments at this amount | B82: 0 | C82: 0
A83: Payment Amount #21 & # of Payments at this amount | B83: 0 | C83: 0
A84: Payment Amount #22 & # of Payments at this amount | B84: 0 | C84: 0
A85: Payment Amount #23 & # of Payments at this amount | B85: 0 | C85: 0
A86: Payment Amount #24 & # of Payments at this amount | B86: 0 | C86: 0
A87: Payment Amount #25 & # of Payments at this amount | B87: 0 | C87: 0
A88: Total Add'l Lease Payment Amts (will automatically be added to the Schedule above) | B88: =(B67*C67)+(B68*C68)+(B69*C69)+(B70*C70)+(B71*C71)+(B72*C72)+(B73*C73)+(B74*C74)+(B75*C75)+(B76*C76)+(B77*C77)+(B78*C78)+(B79*C79)+(B80*C80)+(B81*C81)+(B82*C82)+(B83*C83)+(B84*C84)+(B85*C85)+(B86*C86)+(B87*C87) -> 0 | C88: =SUM(C67:C87) -> 0
A90: Step 2 - Fill out the "Other Payment Considerations" section (starting on row 18) ONLY if instructed to do so on the Data Input tab
A91: (responses from Data Input tab are shown in col D).
A92: a - The Residual Value Guarantee line should only have an amount listed in Col B if it is Fixed In-Substance and not reliant on a future
A93: consideration (i.e. FMV of leased asset).
A94: b - The Allowance for Uncollectible Leases line should only have an amount listed in col C if economic circumstances, lessee
A95: creditworthiness, and historic information indicate a need for an allowance to be calculated. This amount is listed in col C because
A96: it will not be calculated as part of the Present Value of the Lease Receivable, but will instead reduce the Present Value after it is
A97: calculated as a contra-receivable.
A99: Steps 3 - 8 are OPTIONAL (calculation of Present Value and Amortization Tables)
A100: Step 3 - Click the Macro button below to Generate the first 2 columns of the Present Value (PV) Table.
A103: Step 4 - Using the Payment Receivable Schedule filled out in Steps 1 & 2, fill in the Payment Amounts into col F of the PV Table.
A104: a - If there are 12 payments for the 1st payment amount, and 6 payments for the 2nd payment amount, list the 1st amount in the
A105: first 12 rows of the Table, then the 2nd amount for the next 6 rows, and do the same for the remaining payment amounts listed
A106: in the Payment Schedule until all the payments are filled in on the Table.
A107: b - Make sure not to skip any Free Rent periods. If the Payment Schedule indicates the 13th payment is $0, then row 13 of the
A108: Table should be $0, same as the Payment Schedule.
A109: c - If there are any amounts listed for "Other Payment Considerations", add it to the final payment. For example, if the final
A110: payment is $20,000, and there is a Residual Value Guarantee listed for $5,000, then the final payment in the Table should be $25,000.
A111: d - Check to make sure that the sum of all the payments entered into col F of the Table is the same as the Total Undiscounted Cash
A112: Flows in cell B23.
A114: Step 5 - Click the Macro button below to Calculate Net Present Value and Generate the PV and Amortization Tables.
A118: Step 6 - Check data for accuracy:
A119: a - Check the date of the final payment in the Amortization Table and compare to Lease End Date in cell B8. Make sure the final
A120: payment date is reasonable in comparison to the Lease End Date (within same month if payments are Monthly, within the final
A121: quarter if Quarterly, etc).
A122: b - If payments change (there are amounts in Payment Amount #2 + rows), then check the dates the amounts change in the
A123: Amort Table (columns K & M) to make sure the payments change on the correct dates as per the Lease Contract.
A124: c - If 6a and 6b are BOTH correct, skip to Step 8 (Do NOT click the Start Over Macro Button).
A125: d - If 6a or 6b does not appear to be correct:
A126: i - Double-check the Instructions above (Steps 1 - 6), including the check for # of payments in 1i & check for Table payments in 4d.
A127: ii - Double-check cells B2-B8 by reviewing the Lease Contract. These cells automatically filled based on answers in the Data Input
A128: tab. Make any necessary corrections in the Data Input tab (NOT in cells B2-B8) - the corresponding question #s are referenced above.
A129: iii - Double-Check the Payment Schedule and Other Payment Considerations sections. Compare back to the Lease contract to
A130: verify, and correct as necessary.
A131: e - Once corrections have been made, click the Macro button below to Delete the PV & Amortization Tables.
A135: Step 7 - Repeat Steps 3-6 as needed until all checks (1i, 4d, 6a, 6b, and 6di-6diii) are correct.
A137: Step 8 - See Net Present Value calculated in cell B25 for the Lease Receivable and the Deferred Inflow of Resources in cell B28.
A138: Also, see Present Value Table in columns E-G,
A139: and Amortization Table in columns J-P.

Sheet Lease 9 - PV Calc
A1: Present Value Calculations tab - Lease 9 (column K) | B1: Contract # | C1: ='Data Input'!K35 -> 0
A2: Periodic Interest Rate (Section VII, #27-28 from Data Input tab) | B2: ='Data Input'!K171 -> 0
A3: Cash Flows at Beginning or End (Section V, #19) | B3: ='Data Input'!K117 -> 0 | C3: Important:
A4: Number of payments (Section V, #18) | B4: ='Data Input'!K114 -> 0 | C4: Do not insert/delete/move
A5: Frequency of payments (Section V, #17) | B5: ='Data Input'!K110 -> 0 | C5: cells B2:B8
A6: Date of first payment (Section V, #20) | B6: ='Data Input'!K120 -> 00:00:00 | C6: (macros depend on them)
A7: Lease Start Date (Section V, #12) | B7: ='Data Input'!K96 -> 00:00:00
A8: Lease End Date including Extensions (Section V, #15) | B8: ='Data Input'!K105 -> 1900-01-30
A10: Fixed Lease Payment Receivable Schedule (Section VI, #21 & see instructions below): | B10: Amount | C10: # of Payments
A11: Payment Amount #1 & # of Payments at this amount | B11: 0 | C11: 0
A12: Payment Amount #2 & # of Payments at this amount | B12: 0 | C12: 0
A13: Payment Amount #3 & # of Payments at this amount | B13: 0 | C13: 0
A14: Payment Amount #4 & # of Payments at this amount | B14: 0 | C14: 0
A15: Totals from add'l table below if needed) | B15: =B88 -> 0 | C15: =C88 -> 0
A16: Total Lease Payments (sum of all payment amounts * # of payments) | B16: =(B11*C11)+(B12*C12)+(B13*C13)+(B14*C14)+(B15) -> 0 | C16: =SUM(C11:C15) -> 0
D17: Response per
A18: Other Payment Considerations: | B18: Residual Value Guar | C18: Allow for Uncollectible Amt | D18: Data Input tab
A19: Residual Value Guarantee if Fixed-in-Substance (Section VI, #24a & b) | B19: 0 | D19: ='Data Input'!K141 -> 0
A20: Allowance for Uncollectible Leases (Section VI, #26)
A21: For example, could be calculated as a percentage of the total lease pmt rcvbl above | C21: 0 | D21: ='Data Input'!K151 -> 0
A22: Total Other Payment Considerations | B22: =SUM(B19:B21) -> 0
A23: Total Undiscounted Cash Flows (Total Payments + Other Considerations) | B23: =B16+B22 -> 0
C24: Important:
A25: Net Present Value (calculated after Macros below run) | B25: =SUM(G:G) -> 0 | C25: Do not insert/delete/move
C26: NPV must be cell B25
A27: Additions/Subtractions for Deferred Inflow of Resources (Section IV, #9-11) | B27: ='Data Input'!K75-'Data Input'!K76 -> 0 | C27: (macros depend on it)
A28: Deferred Inflow of Resources (calculated after Macros below run) | B28: =B25+B27 -> 0
A30: The Agency is not required to calculate the Present Value and/or enable Macros,
A31: but Steps 1 & 2 of the instructions below are REQUIRED to be completed.
A32: After completing Steps 1 & 2, if desired to calculate the Present Value, complete Steps 3 - 8:
A34: Note 1: First make sure your Excel settings are correct - | B34: See How to Enable Macros tab
A35: Note 2: Please do not Insert, Delete, or Move any cells, columns or rows as this could cause the Macros to fail.
A36: Note 3: The Blue Cells in columns B & C are for manual input, and the Present Value Table will need to be adjusted in column F.
A37: The Orange cells in columns B & C will automatically fill. Also, the Present Value and Amortization Tables will be generated with the
A38: Macro buttons. Please do not make changes to the orange cells or anywhere within the Tables (except column F).
A40: Step 1 - Fill out the "Fixed Lease Payment Receivable Schedule" section above (starting on row 10).
A41: a - If payments escalate over time, list beginning payment amount & # of payments to be received at that amount, then move to line #2
A42: and list the next payment amount & # of payments at that amount, etc.
A43: b - If an extension is deemed Reasonably Certain to be exercised, but the amount is listed as "negotiable", then use the lease
A44: payment amount just prior to the date of extension for those unknown amounts.
A45: c - If a future payment is variable based on an index or interest rate, then calculate those future payments using the current index or rate.
A46: d - If there is an Abated or Free Rent period (skipped payment) indicated in the lease contract, | C46: Desc of Lease Incentives
A47: indicate that with a $0 payment amount (col B) & the number of payments to be skipped (col C). | C47: ='Data Input'!K147 -> 0
A48: Make sure to put these skipped payments in the correct order chronologically. For example, if there
A49: is a Free Rent period for payment 13, then list the first 12 payments on the first line, then
A50: line #2 as $0 (col B) and 1 (col C), then line #3 as the continuing payments after the Free Rent period.
A51: e - If a Bonus payment from the lessor is included in the contract, subtract that amount from the payment closest to the proper
A52: chronological period (as described in d above). This may cause that payment amount to be negative.
A53: f - Use the blue box below to describe how payments change over time. For example - (a) Payment increases 5% every 10 yrs;
A54: (b) Appraisal to be completed every 25 years; or (c) Payment recalculated every 5 yrs based on CPI, etc.
A55: Also describe payment frequency if Less Often than Annually.
A59: g - If payments are Less Often than Annually,indicate this in the Payment Schedule above by listing first payment on the first row (1 in
A60: col C), then the 2nd row should show how many years to be skipped in col C ($0 in col B), then the 3rd row will show the 2nd payment.
A61: Repeat until all payments & all years are represented in the Payment Schdl (total in col C should tie to total yrs of lease term & cell B4).
A62: h - If there are not enough lines in the table above, use the table below to input the additional payment amounts, and the totals from
A63: the additional table will automatically be added to the Payment Schedule above.
A64: i - Verify that the total # of payments in cell B4 is the same as the sum of col C (cell C16).
A66: Additional Lease Payment Receivable Lines (if needed) | B66: Amount | C66: # of Payments
A67: Payment Amount #5 & # of Payments at this amount | B67: 0 | C67: 0
A68: Payment Amount #6 & # of Payments at this amount | B68: 0 | C68: 0
A69: Payment Amount #7 & # of Payments at this amount | B69: 0 | C69: 0
A70: Payment Amount #8 & # of Payments at this amount | B70: 0 | C70: 0
A71: Payment Amount #9 & # of Payments at this amount | B71: 0 | C71: 0
A72: Payment Amount #10 & # of Payments at this amount | B72: 0 | C72: 0
A73: Payment Amount #11 & # of Payments at this amount | B73: 0 | C73: 0
A74: Payment Amount #12 & # of Payments at this amount | B74: 0 | C74: 0
A75: Payment Amount #13 & # of Payments at this amount | B75: 0 | C75: 0
A76: Payment Amount #14 & # of Payments at this amount | B76: 0 | C76: 0
A77: Payment Amount #15 & # of Payments at this amount | B77: 0 | C77: 0
A78: Payment Amount #16 & # of Payments at this amount | B78: 0 | C78: 0
A79: Payment Amount #17 & # of Payments at this amount | B79: 0 | C79: 0
A80: Payment Amount #18 & # of Payments at this amount | B80: 0 | C80: 0
A81: Payment Amount #19 & # of Payments at this amount | B81: 0 | C81: 0
A82: Payment Amount #20 & # of Payments at this amount | B82: 0 | C82: 0
A83: Payment Amount #21 & # of Payments at this amount | B83: 0 | C83: 0
A84: Payment Amount #22 & # of Payments at this amount | B84: 0 | C84: 0
A85: Payment Amount #23 & # of Payments at this amount | B85: 0 | C85: 0
A86: Payment Amount #24 & # of Payments at this amount | B86: 0 | C86: 0
A87: Payment Amount #25 & # of Payments at this amount | B87: 0 | C87: 0
A88: Total Add'l Lease Payment Amts (will automatically be added to the Schedule above) | B88: =(B67*C67)+(B68*C68)+(B69*C69)+(B70*C70)+(B71*C71)+(B72*C72)+(B73*C73)+(B74*C74)+(B75*C75)+(B76*C76)+(B77*C77)+(B78*C78)+(B79*C79)+(B80*C80)+(B81*C81)+(B82*C82)+(B83*C83)+(B84*C84)+(B85*C85)+(B86*C86)+(B87*C87) -> 0 | C88: =SUM(C67:C87) -> 0
A90: Step 2 - Fill out the "Other Payment Considerations" section (starting on row 18) ONLY if instructed to do so on the Data Input tab
A91: (responses from Data Input tab are shown in col D).
A92: a - The Residual Value Guarantee line should only have an amount listed in Col B if it is Fixed In-Substance and not reliant on a future
A93: consideration (i.e. FMV of leased asset).
A94: b - The Allowance for Uncollectible Leases line should only have an amount listed in col C if economic circumstances, lessee
A95: creditworthiness, and historic information indicate a need for an allowance to be calculated. This amount is listed in col C because
A96: it will not be calculated as part of the Present Value of the Lease Receivable, but will instead reduce the Present Value after it is
A97: calculated as a contra-receivable.
A99: Steps 3 - 8 are OPTIONAL (calculation of Present Value and Amortization Tables)
A100: Step 3 - Click the Macro button below to Generate the first 2 columns of the Present Value (PV) Table.
A103: Step 4 - Using the Payment Receivable Schedule filled out in Steps 1 & 2, fill in the Payment Amounts into col F of the PV Table.
A104: a - If there are 12 payments for the 1st payment amount, and 6 payments for the 2nd payment amount, list the 1st amount in the
A105: first 12 rows of the Table, then the 2nd amount for the next 6 rows, and do the same for the remaining payment amounts listed
A106: in the Payment Schedule until all the payments are filled in on the Table.
A107: b - Make sure not to skip any Free Rent periods. If the Payment Schedule indicates the 13th payment is $0, then row 13 of the
A108: Table should be $0, same as the Payment Schedule.
A109: c - If there are any amounts listed for "Other Payment Considerations", add it to the final payment. For example, if the final
A110: payment is $20,000, and there is a Residual Value Guarantee listed for $5,000, then the final payment in the Table should be $25,000.
A111: d - Check to make sure that the sum of all the payments entered into col F of the Table is the same as the Total Undiscounted Cash
A112: Flows in cell B23.
A114: Step 5 - Click the Macro button below to Calculate Net Present Value and Generate the PV and Amortization Tables.
A118: Step 6 - Check data for accuracy:
A119: a - Check the date of the final payment in the Amortization Table and compare to Lease End Date in cell B8. Make sure the final
A120: payment date is reasonable in comparison to the Lease End Date (within same month if payments are Monthly, within the final
A121: quarter if Quarterly, etc).
A122: b - If payments change (there are amounts in Payment Amount #2 + rows), then check the dates the amounts change in the
A123: Amort Table (columns K & M) to make sure the payments change on the correct dates as per the Lease Contract.
A124: c - If 6a and 6b are BOTH correct, skip to Step 8 (Do NOT click the Start Over Macro Button).
A125: d - If 6a or 6b does not appear to be correct:
A126: i - Double-check the Instructions above (Steps 1 - 6), including the check for # of payments in 1i & check for Table payments in 4d.
A127: ii - Double-check cells B2-B8 by reviewing the Lease Contract. These cells automatically filled based on answers in the Data Input
A128: tab. Make any necessary corrections in the Data Input tab (NOT in cells B2-B8) - the corresponding question #s are referenced above.
A129: iii - Double-Check the Payment Schedule and Other Payment Considerations sections. Compare back to the Lease contract to
A130: verify, and correct as necessary.
A131: e - Once corrections have been made, click the Macro button below to Delete the PV & Amortization Tables.
A135: Step 7 - Repeat Steps 3-6 as needed until all checks (1i, 4d, 6a, 6b, and 6di-6diii) are correct.
A137: Step 8 - See Net Present Value calculated in cell B25 for the Lease Receivable and the Deferred Inflow of Resources in cell B28.
A138: Also, see Present Value Table in columns E-G,
A139: and Amortization Table in columns J-P.

Sheet Lease 10 - PV Calc
A1: Present Value Calculations tab - Lease 10 (column L) | B1: Contract # | C1: ='Data Input'!L35 -> 0
A2: Periodic Interest Rate (Section VII, #27-28 from Data Input tab) | B2: ='Data Input'!L171 -> 0
A3: Cash Flows at Beginning or End (Section V, #19) | B3: ='Data Input'!L117 -> 0 | C3: Important:
A4: Number of payments (Section V, #18) | B4: ='Data Input'!L114 -> 0 | C4: Do not insert/delete/move
A5: Frequency of payments (Section V, #17) | B5: ='Data Input'!L110 -> 0 | C5: cells B2:B8
A6: Date of first payment (Section V, #20) | B6: ='Data Input'!L120 -> 00:00:00 | C6: (macros depend on them)
A7: Lease Start Date (Section V, #12) | B7: ='Data Input'!L96 -> 00:00:00
A8: Lease End Date including Extensions (Section V, #15) | B8: ='Data Input'!L105 -> 1900-01-30
A10: Fixed Lease Payment Receivable Schedule (Section VI, #21 & see instructions below): | B10: Amount | C10: # of Payments
A11: Payment Amount #1 & # of Payments at this amount | B11: 0 | C11: 0
A12: Payment Amount #2 & # of Payments at this amount | B12: 0 | C12: 0
A13: Payment Amount #3 & # of Payments at this amount | B13: 0 | C13: 0
A14: Payment Amount #4 & # of Payments at this amount | B14: 0 | C14: 0
A15: Totals from add'l table below if needed) | B15: =B88 -> 0 | C15: =C88 -> 0
A16: Total Lease Payments (sum of all payment amounts * # of payments) | B16: =(B11*C11)+(B12*C12)+(B13*C13)+(B14*C14)+(B15) -> 0 | C16: =SUM(C11:C15) -> 0
D17: Response per
A18: Other Payment Considerations: | B18: Residual Value Guar | C18: Allow for Uncollectible Amt | D18: Data Input tab
A19: Residual Value Guarantee if Fixed-in-Substance (Section VI, #24a & b) | B19: 0 | D19: ='Data Input'!L141 -> 0
A20: Allowance for Uncollectible Leases (Section VI, #26)
A21: For example, could be calculated as a percentage of the total lease pmt rcvbl above | C21: 0 | D21: ='Data Input'!L151 -> 0
A22: Total Other Payment Considerations | B22: =SUM(B19:B21) -> 0
A23: Total Undiscounted Cash Flows (Total Payments + Other Considerations) | B23: =B16+B22 -> 0
C24: Important:
A25: Net Present Value (calculated after Macros below run) | B25: =SUM(G:G) -> 0 | C25: Do not insert/delete/move
C26: NPV must be cell B25
A27: Additions/Subtractions for Deferred Inflow of Resources (Section IV, #9-11) | B27: ='Data Input'!L75-'Data Input'!L76 -> 0 | C27: (macros depend on it)
A28: Deferred Inflow of Resources (calculated after Macros below run) | B28: =B25+B27 -> 0
A30: The Agency is not required to calculate the Present Value and/or enable Macros,
A31: but Steps 1 & 2 of the instructions below are REQUIRED to be completed.
A32: After completing Steps 1 & 2, if desired to calculate the Present Value, complete Steps 3 - 8:
A34: Note 1: First make sure your Excel settings are correct - | B34: See How to Enable Macros tab
A35: Note 2: Please do not Insert, Delete, or Move any cells, columns or rows as this could cause the Macros to fail.
A36: Note 3: The Blue Cells in columns B & C are for manual input, and the Present Value Table will need to be adjusted in column F.
A37: The Orange cells in columns B & C will automatically fill. Also, the Present Value and Amortization Tables will be generated with the
A38: Macro buttons. Please do not make changes to the orange cells or anywhere within the Tables (except column F).
A40: Step 1 - Fill out the "Fixed Lease Payment Receivable Schedule" section above (starting on row 10).
A41: a - If payments escalate over time, list beginning payment amount & # of payments to be received at that amount, then move to line #2
A42: and list the next payment amount & # of payments at that amount, etc.
A43: b - If an extension is deemed Reasonably Certain to be exercised, but the amount is listed as "negotiable", then use the lease
A44: payment amount just prior to the date of extension for those unknown amounts.
A45: c - If a future payment is variable based on an index or interest rate, then calculate those future payments using the current index or rate.
A46: d - If there is an Abated or Free Rent period (skipped payment) indicated in the lease contract, | C46: Desc of Lease Incentives
A47: indicate that with a $0 payment amount (col B) & the number of payments to be skipped (col C). | C47: ='Data Input'!L147 -> 0
A48: Make sure to put these skipped payments in the correct order chronologically. For example, if there
A49: is a Free Rent period for payment 13, then list the first 12 payments on the first line, then
A50: line #2 as $0 (col B) and 1 (col C), then line #3 as the continuing payments after the Free Rent period.
A51: e - If a Bonus payment from the lessor is included in the contract, subtract that amount from the payment closest to the proper
A52: chronological period (as described in d above). This may cause that payment amount to be negative.
A53: f - Use the blue box below to describe how payments change over time. For example - (a) Payment increases 5% every 10 yrs;
A54: (b) Appraisal to be completed every 25 years; or (c) Payment recalculated every 5 yrs based on CPI, etc.
A55: Also describe payment frequency if Less Often than Annually.
A59: g - If payments are Less Often than Annually,indicate this in the Payment Schedule above by listing first payment on the first row (1 in
A60: col C), then the 2nd row should show how many years to be skipped in col C ($0 in col B), then the 3rd row will show the 2nd payment.
A61: Repeat until all payments & all years are represented in the Payment Schdl (total in col C should tie to total yrs of lease term & cell B4).
A62: h - If there are not enough lines in the table above, use the table below to input the additional payment amounts, and the totals from
A63: the additional table will automatically be added to the Payment Schedule above.
A64: i - Verify that the total # of payments in cell B4 is the same as the sum of col C (cell C16).
A66: Additional Lease Payment Receivable Lines (if needed) | B66: Amount | C66: # of Payments
A67: Payment Amount #5 & # of Payments at this amount | B67: 0 | C67: 0
A68: Payment Amount #6 & # of Payments at this amount | B68: 0 | C68: 0
A69: Payment Amount #7 & # of Payments at this amount | B69: 0 | C69: 0
A70: Payment Amount #8 & # of Payments at this amount | B70: 0 | C70: 0
A71: Payment Amount #9 & # of Payments at this amount | B71: 0 | C71: 0
A72: Payment Amount #10 & # of Payments at this amount | B72: 0 | C72: 0
A73: Payment Amount #11 & # of Payments at this amount | B73: 0 | C73: 0
A74: Payment Amount #12 & # of Payments at this amount | B74: 0 | C74: 0
A75: Payment Amount #13 & # of Payments at this amount | B75: 0 | C75: 0
A76: Payment Amount #14 & # of Payments at this amount | B76: 0 | C76: 0
A77: Payment Amount #15 & # of Payments at this amount | B77: 0 | C77: 0
A78: Payment Amount #16 & # of Payments at this amount | B78: 0 | C78: 0
A79: Payment Amount #17 & # of Payments at this amount | B79: 0 | C79: 0
A80: Payment Amount #18 & # of Payments at this amount | B80: 0 | C80: 0
A81: Payment Amount #19 & # of Payments at this amount | B81: 0 | C81: 0
A82: Payment Amount #20 & # of Payments at this amount | B82: 0 | C82: 0
A83: Payment Amount #21 & # of Payments at this amount | B83: 0 | C83: 0
A84: Payment Amount #22 & # of Payments at this amount | B84: 0 | C84: 0
A85: Payment Amount #23 & # of Payments at this amount | B85: 0 | C85: 0
A86: Payment Amount #24 & # of Payments at this amount | B86: 0 | C86: 0
A87: Payment Amount #25 & # of Payments at this amount | B87: 0 | C87: 0
A88: Total Add'l Lease Payment Amts (will automatically be added to the Schedule above) | B88: =(B67*C67)+(B68*C68)+(B69*C69)+(B70*C70)+(B71*C71)+(B72*C72)+(B73*C73)+(B74*C74)+(B75*C75)+(B76*C76)+(B77*C77)+(B78*C78)+(B79*C79)+(B80*C80)+(B81*C81)+(B82*C82)+(B83*C83)+(B84*C84)+(B85*C85)+(B86*C86)+(B87*C87) -> 0 | C88: =SUM(C67:C87) -> 0
A90: Step 2 - Fill out the "Other Payment Considerations" section (starting on row 18) ONLY if instructed to do so on the Data Input tab
A91: (responses from Data Input tab are shown in col D).
A92: a - The Residual Value Guarantee line should only have an amount listed in Col B if it is Fixed In-Substance and not reliant on a future
A93: consideration (i.e. FMV of leased asset).
A94: b - The Allowance for Uncollectible Leases line should only have an amount listed in col C if economic circumstances, lessee
A95: creditworthiness, and historic information indicate a need for an allowance to be calculated. This amount is listed in col C because
A96: it will not be calculated as part of the Present Value of the Lease Receivable, but will instead reduce the Present Value after it is
A97: calculated as a contra-receivable.
A99: Steps 3 - 8 are OPTIONAL (calculation of Present Value and Amortization Tables)
A100: Step 3 - Click the Macro button below to Generate the first 2 columns of the Present Value (PV) Table.
A103: Step 4 - Using the Payment Receivable Schedule filled out in Steps 1 & 2, fill in the Payment Amounts into col F of the PV Table.
A104: a - If there are 12 payments for the 1st payment amount, and 6 payments for the 2nd payment amount, list the 1st amount in the
A105: first 12 rows of the Table, then the 2nd amount for the next 6 rows, and do the same for the remaining payment amounts listed
A106: in the Payment Schedule until all the payments are filled in on the Table.
A107: b - Make sure not to skip any Free Rent periods. If the Payment Schedule indicates the 13th payment is $0, then row 13 of the
A108: Table should be $0, same as the Payment Schedule.
A109: c - If there are any amounts listed for "Other Payment Considerations", add it to the final payment. For example, if the final
A110: payment is $20,000, and there is a Residual Value Guarantee listed for $5,000, then the final payment in the Table should be $25,000.
A111: d - Check to make sure that the sum of all the payments entered into col F of the Table is the same as the Total Undiscounted Cash
A112: Flows in cell B23.
A114: Step 5 - Click the Macro button below to Calculate Net Present Value and Generate the PV and Amortization Tables.
A118: Step 6 - Check data for accuracy:
A119: a - Check the date of the final payment in the Amortization Table and compare to Lease End Date in cell B8. Make sure the final
A120: payment date is reasonable in comparison to the Lease End Date (within same month if payments are Monthly, within the final
A121: quarter if Quarterly, etc).
A122: b - If payments change (there are amounts in Payment Amount #2 + rows), then check the dates the amounts change in the
A123: Amort Table (columns K & M) to make sure the payments change on the correct dates as per the Lease Contract.
A124: c - If 6a and 6b are BOTH correct, skip to Step 8 (Do NOT click the Start Over Macro Button).
A125: d - If 6a or 6b does not appear to be correct:
A126: i - Double-check the Instructions above (Steps 1 - 6), including the check for # of payments in 1i & check for Table payments in 4d.
A127: ii - Double-check cells B2-B8 by reviewing the Lease Contract. These cells automatically filled based on answers in the Data Input
A128: tab. Make any necessary corrections in the Data Input tab (NOT in cells B2-B8) - the corresponding question #s are referenced above.
A129: iii - Double-Check the Payment Schedule and Other Payment Considerations sections. Compare back to the Lease contract to
A130: verify, and correct as necessary.
A131: e - Once corrections have been made, click the Macro button below to Delete the PV & Amortization Tables.
A135: Step 7 - Repeat Steps 3-6 as needed until all checks (1i, 4d, 6a, 6b, and 6di-6diii) are correct.
A137: Step 8 - See Net Present Value calculated in cell B25 for the Lease Receivable and the Deferred Inflow of Resources in cell B28.
A138: Also, see Present Value Table in columns E-G,
A139: and Amortization Table in columns J-P.

Sheet VLookup
A1: Asset Type | B1: For | D1: Useful Life in Months
A2: Constructed Building | B2: Office Space | C2: =CONCATENATE(A2," - ",B2) -> Constructed Building - Office Space | D2: 480
A3: Manufactured Building (non-permanent) | B3: Office Space | C3: Manufactured Building (non-permanent) - Office Space | D3: 300
A4: Vehicles | B4: Aircraft | C4: Vehicles - Aircraft | D4: 180
A5: Vehicles | B5: Heavy Duty Truck | C5: Vehicles - Heavy Duty Truck | D5: 84
A6: Vehicles | B6: Regular truck/car | C6: Vehicles - Regular truck/car | D6: 60
A7: Equipment | B7: Furniture | C7: Equipment - Furniture | D7: 60
A8: Equipment | B8: IT Equipment | C8: Equipment - IT Equipment | D8: 60
A9: Equipment | B9: Telecommunications | C9: Equipment - Telecommunications | D9: 60
A10: Equipment | B10: Other Office Equipment | C10: Equipment - Other Office Equipment | D10: 60
A11: Land | C11: Land | D11: N/A
C12: Right-of-way | D12: N/A
A14: Fixed Asset Catalog Description | C14: Useful Life in Months
A15: Leased Constructed Buildings (Office Space) | C15: 480
A16: Leased Buildings: Prefabricated (Office Space) | C16: 300
A17: Leased Mainframe Computer | C17: 60
A18: Leased Servers | C18: 60
A19: Leased Desktop Computer | C19: 60
A20: Leased Multifunction (print/scan/fax/copy) workgroup printer | C20: 60
A21: Leased Airplane | C21: 180
A22: Leased Automobiles & Station Wagons | C22: 60
A23: Leased Trucks (Heavy) | C23: 84
A24: Leased Mass Transportation: Transit Bus | C24: 84
A25: Leased Radio, Sound and Telecomm. Equipment | C25: 60
A26: Leased Land Improvements | C26: 480
A27: Leased Improvements Other than Land & Building Improvements | C27: 180
A28: Leased Tangible Rights of Way | C28: Use contract term
A29: Leased Land | C29: Use contract term

Sheet Drop Down List
A2: Asset Type
A3: Land
A4: Building
A5: Equipment
A6: Other
A8: Payment System
A9: AFIS
A10: APP
A12: Yes / No / N/A
A13: Yes
A14: No
A15: N/A
A18: Payment frequency
A19: Monthly
A20: Quarterly
A21: Semi-annually
A22: Annually
A24: Payment B or E
A25: Begin
A26: End
A28: Payments Equal?
A29: Yes
A30: No - Fill out PV Calc Tab
A31: N/A
A33: Purchase Option / Termination Penalty/Residual Value Guarantee?
A34: Yes - Fill out PV Calc Tab
A35: No
A36: N/A
A38: single / divided COA
A39: Single COA
A40: Divided - Fill out Gen Extra Info Tab
A42: Type of Division
A43: Specific $ Amount Split
A44: Percentage (%) Split
A46: Termination Option
A47: Yes - use Expected End Date for Lease End Date
A48: No
A49: N/A
